Workbook

Sheet DATA
C2: CÁLCULO DE LAS PROPIEDADES DEL H134A v.2.1
C4: P = | E4: kPa | H4: OPCIONES DE CALCULO | AI4: 138.89085
C5: T = | E5: ºC | H5: Saturacion: (P, T) | (P) | (P, x) | (P, V) | (P, U) | (P, H) | (P, S)
C6: x = | H6: (T) | (T, x) | (T, V) | (T, U) | (T, H) | (T, S)
C7: V = | E7: m3/kg | H7: (x, H) | (x, S)
C8: U = | E8: kJ/kg | H8: SobreSaturacion: (P, T) | (P, V) | (P, U) | (P, H) | (P, S)
C9: H = | E9: kJ/kg | H9: (T, V) | (T, U) | (T, H) | (T, S)
C10: S = | E10: kJ/kg.ºK
H11: REFERENCIAS:
C12: CALCULAR [ctl][c] | H12: • SMITH, J.M.; VAN NESS, HENDRICK C; ABBOTT, MICHAEL. (2005). Introduction to Chemical Engineering Thermodynamics. McGraw-Hill Series in Civil and Environmental Engineering. 7th. Edition. New York
C13: BORRAR [ctl][b]
H16: • CENGEL, YUNUS; BOLES, MICHAEL. (2008). Thermodynamics: An Engineering Approach. 6th Edition. McGraw-Hill. New York
D19: Ing. Federico G. Salazar - Abril 2024
D20: correo@fgsalazar.net

Sheet TABLAS DE VAPOR DE H134A
E1: t (°C) | F1: -20 | G1: -10 | H1: 0 | I1: 10 | J1: 20 | K1: 30 | L1: 40 | M1: 50 | N1: 60 | O1: 70 | P1: 80 | Q1: 90 | R1: 100 | S1: 110 | T1: 120 | U1: 130 | V1: 140 | W1: 150 | X1: 160 | Y1: 170 | Z1: 180
A2: P (kPa) | C2: liq.sat. | D2: vap.sat. | E2: tsat (°C)
A3: 51.25 | B3: V | C3: 0.0007054 | D3: 0.36081 | E3: -40
B4: U | C4: -0.036 | D4: 207.37
B5: H | C5: 0 | D5: 225.86
B6: S | C6: 0 | D6: 0.96866
A7: 56.86 | B7: V | C7: 0.0007083 | D7: 0.32732 | E7: -38
B8: U | C8: 2.475 | D8: 208.51
B9: H | C9: 2.515 | D9: 227.12
B10: S | C10: 0.01072 | D10: 0.96584
A11: 60 | B11: V | C11: 0.0007098 | D11: 0.31121 | E11: -36.95 | F11: 0.33608 | G11: 0.35048 | H11: 0.36476 | I11: 0.37893 | J11: 0.39302 | K11: 0.40705 | L11: 0.42102 | M11: 0.43495 | N11: 0.44883 | O11: 0.46269 | P11: 0.47651 | Q11: 0.49032 | R11: 0.5041
B12: U | C12: 3.798 | D12: 209.12 | F12: 220.6 | G12: 227.55 | H12: 234.66 | I12: 241.92 | J12: 249.35 | K12: 256.95 | L12: 264.71 | M12: 272.64 | N12: 280.73 | O12: 288.99 | P12: 297.41 | Q12: 306 | R12: 314.74
B13: H | C13: 3.841 | D13: 227.79 | F13: 240.76 | G13: 248.58 | H13: 256.54 | I13: 264.66 | J13: 272.94 | K13: 281.37 | L13: 289.97 | M13: 298.74 | N13: 307.66 | O13: 316.75 | P13: 326 | Q13: 335.42 | R13: 344.99
B14: S | C14: 0.01634 | D14: 0.964807 | F14: 1.0174 | G14: 1.0477 | H14: 1.0774 | I14: 1.1066 | J14: 1.1353 | K14: 1.1636 | L14: 1.1915 | M14: 1.2191 | N14: 1.2463 | O14: 1.2732 | P14: 1.2997 | Q14: 1.326 | R14: 1.352
A15: 62.95 | B15: V | C15: 0.0007112 | D15: 0.29751 | E15: -36 | F15: 0.3259268375 | G15: 0.3399300625 | H15: 0.353811075 | I15: 0.3675820875 | J15: 0.3812723625 | K15: 0.3949019 | L15: 0.408472175 | M15: 0.422000975 | N15: 0.43548125 | O15: 0.4489407875 | P15: 0.462360325 | Q15: 0.4757698625 | R15: 0.4891494
B16: U | C16: 4.992 | D16: 209.66 | F16: 220.530675 | G16: 227.491 | H16: 234.6076375 | I16: 241.874275 | J16: 249.3087 | K16: 256.9123875 | L16: 264.676075 | M16: 272.609025 | N16: 280.701975 | O16: 288.9641875 | P16: 297.3856625 | Q16: 305.9771375 | R16: 314.71935
B17: H | C17: 5.037 | D17: 228.39 | F17: 240.667075 | G17: 248.4996125 | H17: 256.4692 | I17: 264.5973125 | J17: 272.8832125 | K17: 281.3191125 | L17: 289.9235375 | M17: 298.697225 | N17: 307.6209125 | O17: 316.7138625 | P17: 325.9668125 | Q17: 335.3882875 | R17: 344.9612375
B18: S | C18: 0.02138 | D18: 0.96315 | F18: 1.014059125 | G18: 1.044403375 | H18: 1.07414025 | I18: 1.10336975 | J18: 1.132091875 | K18: 1.160406625 | L18: 1.188321375 | M18: 1.215936125 | N18: 1.2431435 | O18: 1.270050875 | P18: 1.296565625 | Q18: 1.322873 | R18: 1.348873
A19: 69.56 | B19: V | C19: 0.0007142 | D19: 0.2709 | E19: -34 | F19: 0.30317687 | G19: 0.31629105 | H19: 0.32927806 | I19: 0.34215507 | J19: 0.35494969 | K19: 0.36768192 | L19: 0.38035654 | M19: 0.39298638 | N19: 0.405571 | O19: 0.41813323 | P19: 0.43065546 | Q19: 0.44316769 | R19: 0.45564992
B20: U | C20: 7.517 | D20: 210.81 | F20: 220.37534 | G20: 227.3588 | H20: 234.49031 | I20: 241.77182 | J20: 249.21616 | K20: 256.82811 | L20: 264.60006 | M20: 272.53962 | N20: 280.63918 | O20: 288.90635 | P20: 297.33113 | Q20: 305.92591 | R20: 314.67308
B21: H | C21: 7.566 | D21: 229.65 | F21: 240.45886 | G21: 248.31949 | H21: 256.31056 | I21: 264.45685 | J21: 272.75597 | K21: 281.20509 | L21: 289.81943 | M21: 298.60138 | N21: 307.53333 | O21: 316.63289 | P21: 325.89245 | Q21: 335.31723 | R21: 344.89679
B22: S | C22: 0.03199 | D22: 0.96058 | F22: 1.0065733 | G22: 1.0370167 | H22: 1.0668362 | I22: 1.0961318 | J22: 1.1249035 | K22: 1.1532513 | L22: 1.1811991 | M22: 1.2088469 | N22: 1.2360708 | O22: 1.2629947 | P22: 1.2895425 | Q22: 1.3158664 | R22: 1.3418664
A23: 70 | B23: V | C23: 0.0007144 | D23: 0.26929 | E23: -33.87 | F23: 0.3016625 | G23: 0.3147175 | H23: 0.327645 | I23: 0.3404625 | J23: 0.3531975 | K23: 0.36587 | L23: 0.378485 | M23: 0.391055 | N23: 0.40358 | O23: 0.4160825 | P23: 0.428545 | Q23: 0.4409975 | R23: 0.45342
B24: U | C24: 7.68 | D24: 210.88 | F24: 220.365 | G24: 227.35 | H24: 234.4825 | I24: 241.765 | J24: 249.21 | K24: 256.8225 | L24: 264.595 | M24: 272.535 | N24: 280.635 | O24: 288.9025 | P24: 297.3275 | Q24: 305.9225 | R24: 314.67
B25: H | C25: 7.73 | D25: 229.73 | F25: 240.445 | G25: 248.3075 | H25: 256.3 | I25: 264.4475 | J25: 272.7475 | K25: 281.1975 | L25: 289.8125 | M25: 298.595 | N25: 307.5275 | O25: 316.6275 | P25: 325.8875 | Q25: 335.3125 | R25: 344.8925
B26: S | C26: 0.03267 | D26: 0.9604292308 | F26: 1.006075 | G26: 1.036525 | H26: 1.06635 | I26: 1.09565 | J26: 1.124425 | K26: 1.152775 | L26: 1.180725 | M26: 1.208375 | N26: 1.2356 | O26: 1.262525 | P26: 1.289075 | Q26: 1.3154 | R26: 1.3414
A27: 76.71 | B27: V | C27: 0.0007172 | D27: 0.24711 | E27: -32 | F27: 0.2785683575 | G27: 0.2907208625 | H27: 0.302740835 | I27: 0.3146508075 | J27: 0.3264766025 | K27: 0.33823822 | L27: 0.349944015 | M27: 0.361601455 | N27: 0.37321725 | O27: 0.3848088675 | P27: 0.396360485 | Q27: 0.4079021025 | R27: 0.41941372
B28: U | C28: 10.05 | D28: 211.96 | F28: 220.207315 | G28: 227.2158 | H28: 234.3633975 | I28: 241.660995 | J28: 249.11606 | K28: 256.7369475 | L28: 264.517835 | M28: 272.464545 | N28: 280.571255 | O28: 288.8437875 | P28: 297.2721425 | Q28: 305.8704975 | R28: 314.62303
B29: H | C29: 10.1 | D29: 230.91 | F29: 240.233635 | G29: 248.1246525 | H29: 256.13896 | I29: 264.3049125 | J29: 272.6183325 | K29: 281.0817525 | L29: 289.7068175 | M29: 298.497705 | N29: 307.4385925 | O29: 316.5453025 | P29: 325.8120125 | Q29: 335.2403675 | R29: 344.8270775
B30: S | C30: 0.04253 | D30: 0.95813 | F30: 0.998475925 | G30: 1.029026575 | H30: 1.05893545 | I30: 1.08830255 | J30: 1.117127875 | K30: 1.145511425 | L30: 1.173494975 | M30: 1.201178525 | N30: 1.2284203 | O30: 1.255362075 | P30: 1.281945625 | Q30: 1.3082874 | R30: 1.3342874
A31: 80 | B31: V | C31: 0.0007185 | D31: 0.23753 | E31: -31.13 | F31: 0.267245 | G31: 0.278955 | H31: 0.29053 | I31: 0.301995 | J31: 0.313375 | K31: 0.32469 | L31: 0.33595 | M31: 0.34716 | N31: 0.35833 | O31: 0.369475 | P31: 0.38058 | Q31: 0.391675 | R31: 0.40274
B32: U | C32: 11.15 | D32: 212.46 | F32: 220.13 | G32: 227.15 | H32: 234.305 | I32: 241.61 | J32: 249.07 | K32: 256.695 | L32: 264.48 | M32: 272.43 | N32: 280.54 | O32: 288.815 | P32: 297.245 | Q32: 305.845 | R32: 314.6
B33: H | C33: 11.21 | D33: 231.46 | F33: 240.13 | G33: 248.035 | H33: 256.06 | I33: 264.235 | J33: 272.555 | K33: 281.025 | L33: 289.655 | M33: 298.45 | N33: 307.395 | O33: 316.505 | P33: 325.775 | Q33: 335.205 | R33: 344.795
B34: S | C34: 0.04711 | D34: 0.957132772 | F34: 0.99475 | G34: 1.02535 | H34: 1.0553 | I34: 1.0847 | J34: 1.11355 | K34: 1.14195 | L34: 1.16995 | M34: 1.19765 | N34: 1.2249 | O34: 1.25185 | P34: 1.27845 | Q34: 1.3048 | R34: 1.3308
A35: 84.43 | B35: V | C35: 0.0007203 | D35: 0.2258 | E35: -30 | F35: 0.2519980475 | G35: 0.2631122125 | H35: 0.274088055 | I35: 0.2849538975 | J35: 0.2957336325 | K35: 0.30644726 | L35: 0.317106995 | M35: 0.327714515 | N35: 0.33828425 | O35: 0.3488278775 | P35: 0.359331505 | Q35: 0.3698251325 | R35: 0.38028876
B36: U | C36: 12.59 | D36: 213.11 | F36: 220.025895 | G36: 227.0614 | H36: 234.2263675 | I36: 241.541335 | J36: 249.00798 | K36: 256.6385175 | L36: 264.429055 | M36: 272.383485 | N36: 280.497915 | O36: 288.7762375 | P36: 297.2084525 | Q36: 305.8106675 | R36: 314.56899
B37: H | C37: 12.65 | D37: 232.17 | F37: 239.990455 | G37: 247.9142825 | H37: 255.95368 | I37: 264.1408625 | J37: 272.4697225 | K37: 280.9485825 | L37: 289.5852275 | M37: 298.385765 | N37: 307.3363025 | O37: 316.4507325 | P37: 325.7251625 | Q37: 335.1573775 | R37: 344.7518075
B38: S | C38: 0.05301 | D38: 0.95579 | F38: 0.989733025 | G38: 1.020399475 | H38: 1.05040485 | I38: 1.07984915 | J38: 1.108732375 | K38: 1.137154525 | L38: 1.165176675 | M38: 1.192898825 | N38: 1.2201599 | O38: 1.247120975 | P38: 1.273743125 | Q38: 1.3001042 | R38: 1.3261042
A39: 90 | B39: V | C39: 0.0007223 | D39: 0.21263 | E39: -28.65 | F39: 0.2328275 | G39: 0.2431925 | H39: 0.253415 | I39: 0.2635275 | J39: 0.2735525 | K39: 0.28351 | L39: 0.293415 | M39: 0.303265 | N39: 0.31308 | O39: 0.3228675 | P39: 0.332615 | Q39: 0.3423525 | R39: 0.35206
B40: U | C40: 14.31 | D40: 213.88 | F40: 219.895 | G40: 226.95 | H40: 234.1275 | I40: 241.455 | J40: 248.93 | K40: 256.5675 | L40: 264.365 | M40: 272.325 | N40: 280.445 | O40: 288.7275 | P40: 297.1625 | Q40: 305.7675 | R40: 314.53
B41: H | C41: 14.37 | D41: 233.02 | F41: 239.815 | G41: 247.7625 | H41: 255.82 | I41: 264.0225 | J41: 272.3625 | K41: 280.8525 | L41: 289.4975 | M41: 298.305 | N41: 307.2625 | O41: 316.3825 | P41: 325.6625 | Q41: 335.0975 | R41: 344.6975
B42: S | C42: 0.06008 | D42: 0.9542988715 | F42: 0.983425 | G42: 1.014175 | H42: 1.04425 | I42: 1.07375 | J42: 1.102675 | K42: 1.131125 | L42: 1.159175 | M42: 1.186925 | N42: 1.2142 | O42: 1.241175 | P42: 1.267825 | Q42: 1.2942 | R42: 1.3202
A43: 92.76 | B43: V | C43: 0.0007234 | D43: 0.20666 | E43: -28 | F43: 0.22332827 | G43: 0.23332205 | H43: 0.24317126 | I43: 0.25291047 | J43: 0.26256149 | K43: 0.27214432 | L43: 0.28167534 | M43: 0.29114998 | N43: 0.300591 | O43: 0.31000383 | P43: 0.31937666 | Q43: 0.32873949 | R43: 0.33807232
B44: U | C44: 15.13 | D44: 214.25 | F44: 219.83014 | G44: 226.8948 | H44: 234.07851 | I44: 241.41222 | J44: 248.89136 | K44: 256.53231 | L44: 264.33326 | M44: 272.29602 | N44: 280.41878 | O44: 288.70335 | P44: 297.13973 | Q44: 305.74611 | R44: 314.51068
B45: H | C45: 15.2 | D45: 233.43 | F45: 239.72806 | G45: 247.68729 | H45: 255.75376 | I45: 263.96385 | J45: 272.30937 | K45: 280.80489 | L45: 289.45403 | M45: 298.26498 | N45: 307.22593 | O45: 316.34869 | P45: 325.63145 | Q45: 335.06783 | R45: 344.67059
B46: S | C46: 0.06344 | D46: 0.95356 | F46: 0.9802993 | G46: 1.0110907 | H46: 1.0412002 | I46: 1.0707278 | J46: 1.0996735 | K46: 1.1281373 | L46: 1.1562011 | M46: 1.1839649 | N46: 1.2112468 | O46: 1.2382287 | P46: 1.2648925 | Q46: 1.2912744 | R46: 1.3172744
A47: 100 | B47: V | C47: 0.0007259 | D47: 0.19254 | E47: -26.37 | F47: 0.19841 | G47: 0.20743 | H47: 0.2163 | I47: 0.22506 | J47: 0.23373 | K47: 0.24233 | L47: 0.25088 | M47: 0.25937 | N47: 0.26783 | O47: 0.27626 | P47: 0.28465 | Q47: 0.29303 | R47: 0.30138
B48: U | C48: 17.21 | D48: 215.19 | F48: 219.66 | G48: 226.75 | H48: 233.95 | I48: 241.3 | J48: 248.79 | K48: 256.44 | L48: 264.25 | M48: 272.22 | N48: 280.35 | O48: 288.64 | P48: 297.08 | Q48: 305.69 | R48: 314.46
B49: H | C49: 17.28 | D49: 234.44 | F49: 239.5 | G49: 247.49 | H49: 255.58 | I49: 263.81 | J49: 272.17 | K49: 280.68 | L49: 289.34 | M49: 298.16 | N49: 307.13 | O49: 316.26 | P49: 325.55 | Q49: 334.99 | R49: 344.6
B50: S | C50: 0.07188 | D50: 0.951848874 | F50: 0.9721 | G50: 1.003 | H50: 1.0332 | I50: 1.0628 | J50: 1.0918 | K50: 1.1203 | L50: 1.1484 | M50: 1.1762 | N50: 1.2035 | O50: 1.2305 | P50: 1.2572 | Q50: 1.2836 | R50: 1.3096
A51: 101.73 | B51: V | C51: 0.0007265 | D51: 0.18946 | E51: -26 | F51: 0.1957153748 | G51: 0.204775315 | H51: 0.2135462725 | I51: 0.222206365 | J51: 0.2307764575 | K51: 0.2392761175 | L51: 0.247725345 | M51: 0.2561154375 | N51: 0.264474665 | O51: 0.2728038925 | P51: 0.2810935525 | Q51: 0.28937278 | R51: 0.2976220075
B52: U | C52: 17.69 | D52: 215.4 | F52: 219.6167764 | G52: 226.71367 | H52: 233.91886 | I52: 241.27232 | J52: 248.7653475 | K52: 256.4179425 | L52: 264.230105 | M52: 272.2014025 | N52: 280.3331325 | O52: 288.62443 | P52: 297.0657275 | Q52: 305.6765925 | R52: 314.4474575
B53: H | C53: 17.76 | D53: 234.68 | F53: 239.4425442 | G53: 247.4411275 | H53: 255.537615 | I53: 263.77194 | J53: 272.1358325 | K53: 280.6492925 | L53: 289.31232 | M53: 298.1344825 | N53: 307.106645 | O53: 316.2388075 | P53: 325.530105 | Q53: 334.971835 | R53: 344.5827
B54: S | C54: 0.07382 | D54: 0.95144 | F54: 0.9707052995 | G54: 1.00167655 | H54: 1.031898175 | I54: 1.061515475 | J54: 1.09052845 | K54: 1.119041425 | L54: 1.147150075 | M54: 1.1749544 | N54: 1.20226305 | O54: 1.229267375 | P54: 1.2559717 | Q54: 1.282376025 | R54: 1.30838035
A55: 111.37 | B55: V | C55: 0.0007297 | D55: 0.17395 | E55: -24 | F55: 0.1807002377 | G55: 0.189982735 | H55: 0.1982018025 | I55: 0.206305185 | J55: 0.2143185675 | K55: 0.2222591075 | L55: 0.230146805 | M55: 0.2379801875 | N55: 0.245777885 | O55: 0.2535455825 | P55: 0.2612761225 | Q55: 0.26899382 | R55: 0.2766815175
B56: U | C56: 20.25 | D56: 216.55 | F56: 219.3759232 | G56: 226.51123 | H56: 233.74534 | I56: 241.11808 | J56: 248.6279775 | K56: 256.2950325 | L56: 264.119245 | M56: 272.0977725 | N56: 280.2391425 | O56: 288.53767 | P56: 296.9861975 | Q56: 305.6018825 | R56: 314.3775675
B57: H | C57: 20.33 | D57: 235.92 | F57: 239.1223857 | G57: 247.1687975 | H57: 255.301435 | I57: 263.55986 | J57: 271.9454425 | K57: 280.4781825 | L57: 289.15808 | M57: 297.9922925 | N57: 306.976505 | O57: 316.1207175 | P57: 325.419245 | Q57: 334.870615 | R57: 344.4863
B58: S | C58: 0.08414 | D58: 0.94941 | F58: 0.9629336737 | G58: 0.99430195 | H58: 1.024644075 | I58: 1.054357775 | J58: 1.08344305 | K58: 1.112028325 | L58: 1.140185175 | M58: 1.1680136 | N58: 1.19537045 | O58: 1.222398875 | P58: 1.2491273 | Q58: 1.275555725 | R58: 1.30158415
A59: 120 | B59: V | C59: 0.0007324 | D59: 0.16212 | E59: -22.32 | F59: 0.1672582633 | G59: 0.17674 | H59: 0.184465 | I59: 0.19207 | J59: 0.199585 | K59: 0.207025 | L59: 0.21441 | M59: 0.221745 | N59: 0.22904 | O59: 0.236305 | P59: 0.243535 | Q59: 0.25075 | R59: 0.257935
B60: U | C60: 22.4 | D60: 217.51 | F60: 219.1603047 | G60: 226.33 | H60: 233.59 | I60: 240.98 | J60: 248.505 | K60: 256.185 | L60: 264.02 | M60: 272.005 | N60: 280.155 | O60: 288.46 | P60: 296.915 | Q60: 305.535 | R60: 314.315
B61: H | C61: 22.49 | D61: 236.97 | F61: 238.8357709 | G61: 246.925 | H61: 255.09 | I61: 263.37 | J61: 271.775 | K61: 280.325 | L61: 289.02 | M61: 297.865 | N61: 306.86 | O61: 316.015 | P61: 325.32 | Q61: 334.78 | R61: 344.4
B62: S | C62: 0.09275 | D62: 0.9478007343 | F62: 0.9559762949 | G62: 0.9877 | H62: 1.01815 | I62: 1.04795 | J62: 1.0771 | K62: 1.10575 | L62: 1.13395 | M62: 1.1618 | N62: 1.1892 | O62: 1.21625 | P62: 1.243 | Q62: 1.26945 | R62: 1.2955
A63: 121.72 | B63: V | C63: 0.0007329 | D63: 0.15995 | E63: -22 | F63: 0.1645792139 | G63: 0.17410066 | H63: 0.18172719 | I63: 0.18923286 | J63: 0.19664853 | K63: 0.20398877 | L63: 0.21127358 | M63: 0.21850925 | N63: 0.22570406 | O63: 0.23286887 | P63: 0.23999911 | Q63: 0.24711392 | R63: 0.25419873
B64: U | C64: 22.82 | D64: 217.7 | F64: 219.1173309 | G64: 226.29388 | H64: 233.55904 | I64: 240.95248 | J64: 248.48049 | K64: 256.16307 | L64: 264.00022 | M64: 271.98651 | N64: 280.13823 | O64: 288.44452 | P64: 296.90081 | Q64: 305.52167 | R64: 314.30253
B65: H | C65: 22.91 | D65: 237.17 | F65: 238.7786472 | G65: 246.87641 | H65: 255.04786 | I65: 263.33216 | J65: 271.74103 | K65: 280.29447 | L65: 288.99248 | M65: 297.83963 | N65: 306.83678 | O65: 315.99393 | P65: 325.30022 | Q65: 334.76194 | R65: 344.3828
B66: S | C66: 0.09441 | D66: 0.94748 | F66: 0.9545896563 | G66: 0.9863842 | H66: 1.0168557 | I66: 1.0466729 | J66: 1.0758358 | K66: 1.1044987 | L66: 1.1327073 | M66: 1.1605616 | N66: 1.1879702 | O66: 1.2150245 | P66: 1.2417788 | Q66: 1.2682331 | R66: 1.2942874
A67: 132.82 | B67: V | C67: 0.0007362 | D67: 0.14729 | E67: -20 | F67: 0.14729 | G67: 0.15706771 | H67: 0.164058765 | I67: 0.17092341 | J67: 0.177698055 | K67: 0.184394495 | L67: 0.19103273 | M67: 0.197627375 | N67: 0.20417561 | O67: 0.210693845 | P67: 0.217180285 | Q67: 0.22364852 | R67: 0.230086755
B68: U | C68: 25.39 | D68: 218.84 | F68: 218.84 | G68: 226.06078 | H68: 233.35924 | I68: 240.77488 | J68: 248.322315 | K68: 256.021545 | L68: 263.87257 | M68: 271.867185 | N68: 280.030005 | O68: 288.34462 | P68: 296.809235 | Q68: 305.435645 | R68: 314.222055
B69: H | C69: 25.49 | D69: 238.41 | F69: 238.41 | G69: 246.562835 | H69: 254.77591 | I69: 263.08796 | J69: 271.521805 | K69: 280.097445 | L69: 288.81488 | M69: 297.675905 | N69: 306.68693 | O69: 315.857955 | P69: 325.17257 | Q69: 334.64539 | R69: 344.2718
B70: S | C70: 0.10463 | D70: 0.945641 | F70: 0.945641 | G70: 0.9778927 | H70: 1.00850295 | I70: 1.03843115 | J70: 1.0676773 | K70: 1.09642345 | L70: 1.12468755 | M70: 1.1525696 | N70: 1.1800337 | O70: 1.20711575 | P70: 1.2338978 | Q70: 1.26037985 | R70: 1.2864619
A71: 140 | B71: V | C71: 0.0007383 | D71: 0.14014 | E71: -18.77 | G71: 0.14605 | H71: 0.15263 | I71: 0.15908 | J71: 0.16544 | K71: 0.17172 | L71: 0.17794 | M71: 0.18412 | N71: 0.19025 | O71: 0.19635 | P71: 0.20242 | Q71: 0.20847 | R71: 0.21449
B72: U | C72: 26.98 | D72: 219.54 | G72: 225.91 | H72: 233.23 | I72: 240.66 | J72: 248.22 | K72: 255.93 | L72: 263.79 | M72: 271.79 | N72: 279.96 | O72: 288.28 | P72: 296.75 | Q72: 305.38 | R72: 314.17
B73: H | C73: 27.08 | D73: 239.16 | G73: 246.36 | H73: 254.6 | I73: 262.93 | J73: 271.38 | K73: 279.97 | L73: 288.7 | M73: 297.57 | N73: 306.59 | O73: 315.77 | P73: 325.09 | Q73: 334.57 | R73: 344.2
B74: S | C74: 0.11087 | D74: 0.94456 | G74: 0.9724 | H74: 1.0031 | I74: 1.0331 | J74: 1.0624 | K74: 1.0912 | L74: 1.1195 | M74: 1.1474 | N74: 1.1749 | O74: 1.202 | P74: 1.2288 | Q74: 1.2553 | R74: 1.2814
A75: 144.69 | B75: V | C75: 0.0007396 | D75: 0.13583 | E75: -18 | G75: 0.14204474 | H75: 0.1484781775 | I75: 0.15477927 | J75: 0.16098919 | K75: 0.16711911 | L75: 0.1731878575 | M75: 0.179216605 | N75: 0.185196525 | O75: 0.1911452725 | P75: 0.1970628475 | Q75: 0.202961595 | R75: 0.2088303425
B76: U | C76: 27.98 | D76: 219.98 | G76: 225.8056475 | H76: 233.1420625 | I76: 240.582615 | J76: 248.151995 | K76: 255.86903 | L76: 263.73372 | M76: 271.7395825 | N76: 279.9131 | O76: 288.2366175 | P76: 296.7113075 | Q76: 305.3436525 | R76: 314.1359975
B77: H | C77: 28.09 | D77: 239.64 | G77: 246.2193 | H77: 254.480405 | I77: 262.8256475 | J77: 271.2873725 | K77: 279.88558 | L77: 288.6237875 | M77: 297.5008225 | N77: 306.526685 | O77: 315.711375 | P77: 325.036065 | Q77: 334.5195825 | R77: 344.1531
B78: S | C78: 0.11481 | D78: 0.94389 | G78: 0.969586 | H78: 1.000368075 | I78: 1.030414975 | J78: 1.059761875 | K78: 1.08859705 | L78: 1.1169205 | M78: 1.14484395 | N78: 1.172355675 | O78: 1.199479125 | P78: 1.22629085 | Q78: 1.25279085 | R78: 1.2789143
A79: 157.38 | B79: V | C79: 0.000743 | D79: 0.12542 | E79: -16 | G79: 0.13120748 | H79: 0.137244355 | I79: 0.14314254 | J79: 0.14894638 | K79: 0.15467022 | L79: 0.160329715 | M79: 0.16594921 | N79: 0.17152305 | O79: 0.177062545 | P79: 0.182567695 | Q79: 0.18805719 | R79: 0.193516685
B80: U | C80: 30.57 | D80: 221.13 | G80: 225.523295 | H80: 232.904125 | I80: 240.37323 | J80: 247.96799 | K80: 255.70406 | L80: 263.58144 | M80: 271.603165 | N80: 279.7862 | O80: 288.119235 | P80: 296.606615 | Q80: 305.245305 | R80: 314.043995
B81: H | C81: 30.69 | D81: 240.87 | G81: 245.8386 | H81: 254.15681 | I81: 262.543295 | J81: 271.036745 | K81: 279.65716 | L81: 288.417575 | M81: 297.313645 | N81: 306.35537 | O81: 315.55275 | P81: 324.89013 | Q81: 334.383165 | R81: 344.0262
B82: S | C82: 0.12493 | D82: 0.94222 | G82: 0.961972 | H82: 0.99297615 | I82: 1.02314995 | J82: 1.05262375 | K82: 1.0815541 | L82: 1.109941 | M82: 1.1379279 | N82: 1.16547135 | O82: 1.19265825 | P82: 1.2195017 | Q82: 1.2460017 | R82: 1.2721886
A83: 160 | B83: V | C83: 0.0007437 | D83: 0.12348 | E83: -15.6 | G83: 0.12897 | H83: 0.134925 | I83: 0.14074 | J83: 0.14646 | K83: 0.1521 | L83: 0.157675 | M83: 0.16321 | N83: 0.1687 | O83: 0.174155 | P83: 0.179575 | Q83: 0.18498 | R83: 0.190355
B84: U | C84: 31.09 | D84: 221.35 | G84: 225.465 | H84: 232.855 | I84: 240.33 | J84: 247.93 | K84: 255.67 | L84: 263.55 | M84: 271.575 | N84: 279.76 | O84: 288.095 | P84: 296.585 | Q84: 305.225 | R84: 314.025
B85: H | C85: 31.21 | D85: 241.11 | G85: 245.76 | H85: 254.09 | I85: 262.485 | J85: 270.985 | K85: 279.61 | L85: 288.375 | M85: 297.275 | N85: 306.32 | O85: 315.52 | P85: 324.86 | Q85: 334.355 | R85: 344
B86: S | C86: 0.12693 | D86: 0.9419 | G86: 0.9604 | H86: 0.99145 | I86: 1.02165 | J86: 1.05115 | K86: 1.0801 | L86: 1.1085 | M86: 1.1365 | N86: 1.16405 | O86: 1.19125 | P86: 1.2181 | Q86: 1.2446 | R86: 1.2708
A87: 170.93 | B87: V | C87: 0.0007464 | D87: 0.11597 | E87: -14 | G87: 0.11963578 | H87: 0.1252492175 | I87: 0.13071719 | J87: 0.13608743 | K87: 0.14137767 | L87: 0.1466001775 | M87: 0.151782685 | N87: 0.156922925 | O87: 0.1620254325 | P87: 0.1670902075 | Q87: 0.172142715 | R87: 0.1771652225
B88: U | C88: 33.17 | D88: 222.27 | G88: 225.2218075 | H88: 232.6500625 | I88: 240.149655 | J88: 247.771515 | K88: 255.52791 | L88: 263.41884 | M88: 271.4575025 | N88: 279.6507 | O88: 287.9938975 | P88: 296.4948275 | Q88: 305.1402925 | R88: 313.9457575
B89: H | C89: 33.3 | D89: 242.09 | G89: 245.4321 | H89: 253.811285 | I89: 262.2418075 | J89: 270.7691325 | K89: 279.41326 | L89: 288.1973875 | M89: 297.1137825 | N89: 306.172445 | O89: 315.383375 | P89: 324.734305 | Q89: 334.2375025 | R89: 343.8907
B90: S | C90: 0.13501 | D90: 0.94063 | G90: 0.953842 | H90: 0.985083275 | I90: 1.015392575 | J90: 1.045001875 | K90: 1.07403385 | L90: 1.1024885 | M90: 1.13054315 | N90: 1.158120475 | O90: 1.185375125 | P90: 1.21225245 | Q90: 1.23875245 | R90: 1.2650071
A91: 180 | B91: V | C91: 0.0007487 | D91: 0.11041 | E91: -12.73 | G91: 0.11189 | H91: 0.11722 | I91: 0.1224 | J91: 0.12748 | K91: 0.13248 | L91: 0.13741 | M91: 0.1423 | N91: 0.14715 | O91: 0.15196 | P91: 0.15673 | Q91: 0.16149 | R91: 0.16622
B92: U | C92: 34.83 | D92: 222.99 | G92: 225.02 | H92: 232.48 | I92: 240 | J92: 247.64 | K92: 255.41 | L92: 263.31 | M92: 271.36 | N92: 279.56 | O92: 287.91 | P92: 296.42 | Q92: 305.07 | R92: 313.88
B93: H | C93: 34.97 | D93: 242.86 | G93: 245.16 | H93: 253.58 | I93: 262.04 | J93: 270.59 | K93: 279.25 | L93: 288.05 | M93: 296.98 | N93: 306.05 | O93: 315.27 | P93: 324.63 | Q93: 334.14 | R93: 343.8
B94: S | C94: 0.14139 | D94: 0.93965 | G94: 0.9484 | H94: 0.9798 | I94: 1.0102 | J94: 1.0399 | K94: 1.069 | L94: 1.0975 | M94: 1.1256 | N94: 1.1532 | O94: 1.1805 | P94: 1.2074 | Q94: 1.2339 | R94: 1.2602
A95: 185.37 | B95: V | C95: 0.0007499 | D95: 0.10736 | E95: -12 | G95: 0.10867337 | H95: 0.113887915 | I95: 0.118949775 | J95: 0.12390895 | K95: 0.12879081 | L95: 0.133599985 | M95: 0.13836916 | N95: 0.143098335 | O95: 0.147784825 | P95: 0.152436685 | Q95: 0.157073175 | R95: 0.161685035
B96: U | C96: 35.78 | D96: 223.4 | G96: 224.893805 | H96: 232.375285 | I96: 239.911395 | J96: 247.562135 | K96: 255.337505 | L96: 263.248245 | M96: 271.303615 | N96: 279.508985 | O96: 287.86167 | P96: 296.374355 | Q96: 305.029725 | R96: 313.84241
B97: H | C97: 35.92 | D97: 243.3 | G97: 244.99353 | H97: 253.437695 | I97: 261.91649 | J97: 270.479915 | K97: 279.15334 | L97: 287.961395 | M97: 296.89945 | N97: 305.977505 | O97: 315.20019 | P97: 324.568245 | Q97: 334.083615 | R97: 343.7463
B98: S | C98: 0.14504 | D98: 0.93911 | G98: 0.9456076 | H98: 0.977115 | I98: 1.0075687 | J98: 1.0373224 | K98: 1.06644925 | L98: 1.09500295 | M98: 1.12310295 | N98: 1.15075665 | O98: 1.17805665 | P98: 1.20495665 | Q98: 1.2314835 | R98: 1.2577835
A99: 200 | B99: V | C99: 0.0007533 | D99: 0.099867 | E99: -10.09 | G99: 0.09991 | H99: 0.10481 | I99: 0.10955 | J99: 0.11418 | K99: 0.11874 | L99: 0.12322 | M99: 0.12766 | N99: 0.13206 | O99: 0.13641 | P99: 0.14074 | Q99: 0.14504 | R99: 0.14933
B100: U | C100: 38.28 | D100: 224.48 | G100: 224.55 | H100: 232.09 | I100: 239.67 | J100: 247.35 | K100: 255.14 | L100: 263.08 | M100: 271.15 | N100: 279.37 | O100: 287.73 | P100: 296.25 | Q100: 304.92 | R100: 313.74
B101: H | C101: 38.43 | D101: 244.46 | G101: 244.54 | H101: 253.05 | I101: 261.58 | J101: 270.18 | K101: 278.89 | L101: 287.72 | M101: 296.68 | N101: 305.78 | O101: 315.01 | P101: 324.4 | Q101: 333.93 | R101: 343.6
B102: S | C102: 0.15457 | D102: 0.93773 | G102: 0.938 | H102: 0.9698 | I102: 1.0004 | J102: 1.0303 | K102: 1.0595 | L102: 1.0882 | M102: 1.1163 | N102: 1.1441 | O102: 1.1714 | P102: 1.1983 | Q102: 1.2249 | R102: 1.2512
A103: 200.74 | B103: V | C103: 0.0007535 | D103: 0.099516 | E103: -10 | H103: 0.10446516 | I103: 0.109193135 | J103: 0.113810925 | K103: 0.11835853 | L103: 0.122826135 | M103: 0.12725374 | N103: 0.13164116 | O103: 0.135978765 | P103: 0.140296185 | Q103: 0.14458379 | R103: 0.148861025
B104: U | C104: 38.4 | D104: 224.54 | H104: 232.0752 | I104: 239.657235 | J104: 247.338715 | K104: 255.130195 | L104: 263.070935 | M104: 271.14186 | N104: 279.3626 | O104: 287.723155 | P104: 296.24371 | Q104: 304.91408 | R104: 313.73445
B105: H | C105: 38.55 | D105: 244.51 | H105: 253.03002 | I105: 261.562795 | J105: 270.16483 | K105: 278.876495 | L105: 287.70779 | M105: 296.6689 | N105: 305.769825 | O105: 315.00075 | P105: 324.391305 | Q105: 333.92186 | R105: 343.5926
B106: S | C106: 0.15504 | D106: 0.93766 | H106: 0.96946885 | I106: 1.00007995 | J106: 1.02998735 | K106: 1.0591929 | L106: 1.0878966 | M106: 1.1160003 | N106: 1.14380215 | O106: 1.171104 | P106: 1.1980077 | Q106: 1.22460955 | R106: 1.2509114
A107: 217.08 | B107: V | C107: 0.0007571 | D107: 0.092352 | E107: -8 | H107: 0.09685072 | I107: 0.10131317 | J107: 0.10566135 | K107: 0.10993526 | L107: 0.11412917 | M107: 0.11828308 | N107: 0.12239272 | O107: 0.12645663 | P107: 0.13049627 | Q107: 0.13451018 | R107: 0.13850555
B108: U | C108: 41.03 | D108: 225.67 | H108: 231.7484 | I108: 239.37537 | J108: 247.08953 | K108: 254.91369 | L108: 262.87077 | M108: 270.96212 | N108: 279.1992 | O108: 287.57201 | P108: 296.10482 | Q108: 304.78336 | R108: 313.6119
B109: H | C109: 41.19 | D109: 245.72 | H109: 252.58884 | I109: 261.18289 | J109: 269.82986 | K109: 278.57829 | L109: 287.43818 | M109: 296.4238 | N109: 305.54515 | O109: 314.7965 | P109: 324.19931 | Q109: 333.74212 | R109: 343.4292
B110: S | C110: 0.16498 | D110: 0.93629 | H110: 0.9621567 | I110: 0.9930129 | J110: 1.0230837 | K110: 1.0524118 | L110: 1.0811972 | M110: 1.1093826 | N110: 1.1372253 | O110: 1.164568 | P110: 1.1915534 | Q110: 1.2181961 | R110: 1.2445388
A111: 234.44 | B111: V | C111: 0.0007608 | D111: 0.085802 | E111: -6 | H111: 0.08876096 | I111: 0.09294131 | J111: 0.09700305 | K111: 0.10098618 | L111: 0.10488931 | M111: 0.10875244 | N111: 0.11256696 | O111: 0.11634009 | P111: 0.12008461 | Q111: 0.12380774 | R111: 0.12750365
B112: U | C112: 43.66 | D112: 226.8 | H112: 231.4012 | I112: 239.07591 | J112: 246.82479 | K112: 254.68367 | L112: 262.65811 | M112: 270.77116 | N112: 279.0256 | O112: 287.41143 | P112: 295.95726 | Q112: 304.64448 | R112: 313.4817
B113: H | C113: 43.84 | D113: 246.91 | H113: 252.12012 | I113: 260.77927 | J113: 269.47398 | K113: 278.26147 | L113: 287.15174 | M113: 296.1634 | N113: 305.30645 | O113: 314.5795 | P113: 323.99533 | Q113: 333.55116 | R113: 343.2556
B114: S | C114: 0.17489 | D114: 0.93497 | H114: 0.9543881 | I114: 0.9855047 | J114: 1.0157491 | K114: 1.0452074 | L114: 1.0740796 | M114: 1.1023518 | N114: 1.1302379 | O114: 1.157624 | P114: 1.1846962 | Q114: 1.2113823 | R114: 1.2377684
A115: 240 | B115: V | C115: 0.000762 | D115: 0.083897 | E115: -5.38 | H115: 0.08617 | I115: 0.09026 | J115: 0.09423 | K115: 0.09812 | L115: 0.10193 | M115: 0.1057 | N115: 0.10942 | O115: 0.1131 | P115: 0.11675 | Q115: 0.12038 | R115: 0.12398
B116: U | C116: 44.48 | D116: 227.14 | H116: 231.29 | I116: 238.98 | J116: 246.74 | K116: 254.61 | L116: 262.59 | M116: 270.71 | N116: 278.97 | O116: 287.36 | P116: 295.91 | Q116: 304.6 | R116: 313.44
B117: H | C117: 44.66 | D117: 247.28 | H117: 251.97 | I117: 260.65 | J117: 269.36 | K117: 278.16 | L117: 287.06 | M117: 296.08 | N117: 305.23 | O117: 314.51 | P117: 323.93 | Q117: 333.49 | R117: 343.2
B118: S | C118: 0.17794 | D118: 0.93458 | H118: 0.9519 | I118: 0.9831 | J118: 1.0134 | K118: 1.0429 | L118: 1.0718 | M118: 1.1001 | N118: 1.128 | O118: 1.1554 | P118: 1.1825 | Q118: 1.2092 | R118: 1.2356
A119: 252.85 | B119: V | C119: 0.0007646 | D119: 0.079804 | E119: -4 | H119: 0.0818813125 | I119: 0.08582675 | J119: 0.089648975 | K119: 0.093384775 | L119: 0.0970437875 | M119: 0.100656375 | N119: 0.104222175 | O119: 0.107747975 | P119: 0.111243775 | Q119: 0.1147163625 | R119: 0.1181621625
B120: U | C120: 46.31 | D120: 227.92 | H120: 231.0169375 | I120: 238.7519125 | J120: 246.5440375 | K120: 254.4333125 | L120: 262.4325875 | M120: 270.56865 | N120: 278.8382875 | O120: 287.2411375 | P120: 295.800775 | Q120: 304.5004125 | R120: 313.3468375
B121: H | C121: 46.5 | D121: 248.1 | H121: 251.603775 | I121: 260.3383875 | J121: 269.09015 | K121: 277.9190625 | L121: 286.84155 | M121: 295.8840375 | N121: 305.0501 | O121: 314.3461625 | P121: 323.7790125 | Q121: 333.3518625 | R121: 343.0715
B122: S | C122: 0.18476 | D122: 0.93372 | H122: 0.946856375 | I122: 0.978249125 | J122: 1.008677625 | K122: 1.038274 | L122: 1.06723825 | M122: 1.095634625 | N122: 1.12356675 | O122: 1.151031 | P122: 1.178163125 | Q122: 1.20489525 | R122: 1.23129525
A123: 272.36 | B123: V | C123: 0.0007684 | D123: 0.074304 | E123: -2 | H123: 0.07536985 | I123: 0.0790958 | J123: 0.08269366 | K123: 0.08619534 | L123: 0.08962511 | M123: 0.0929987 | N123: 0.09633038 | O123: 0.09962206 | P123: 0.10288374 | Q123: 0.10611733 | R123: 0.10932901
B124: U | C124: 48.96 | D124: 229.04 | H124: 230.60235 | I124: 238.40561 | J124: 246.24651 | K124: 254.16505 | L124: 262.19359 | M124: 270.35404 | N124: 278.63831 | O124: 287.06067 | P124: 295.63494 | Q124: 304.34921 | R124: 313.20539
B125: H | C125: 49.17 | D125: 249.28 | H125: 251.04774 | I125: 259.86527 | J125: 268.68044 | K125: 277.55325 | L125: 286.50988 | M125: 295.58651 | N125: 304.77696 | O125: 314.09741 | P125: 323.54977 | Q125: 333.14213 | R125: 342.8764
B126: S | C126: 0.19459 | D126: 0.93259 | H126: 0.9391987 | I126: 0.9708841 | J126: 1.0015077 | K126: 1.0312504 | L126: 1.0603122 | M126: 1.0888549 | N126: 1.1168358 | O126: 1.1443976 | P126: 1.1715785 | Q126: 1.1983594 | R126: 1.2247594
A127: 280 | B127: V | C127: 0.0007699 | D127: 0.072352 | E127: -1.25 | H127: 0.07282 | I127: 0.07646 | J127: 0.07997 | K127: 0.08338 | L127: 0.08672 | M127: 0.09 | N127: 0.09324 | O127: 0.09644 | P127: 0.09961 | Q127: 0.10275 | R127: 0.10587 | S127: 0.10897 | T127: 0.11205 | U127: 0.11512 | V127: 0.11818
B128: U | C128: 49.97 | D128: 229.46 | H128: 230.44 | I128: 238.27 | J128: 246.13 | K128: 254.06 | L128: 262.1 | M128: 270.27 | N128: 278.56 | O128: 286.99 | P128: 295.57 | Q128: 304.29 | R128: 313.15 | S128: 322.16 | T128: 331.32 | U128: 340.63 | V128: 350.09
B129: H | C129: 50.18 | D129: 249.72 | H129: 250.83 | I129: 259.68 | J129: 268.52 | K129: 277.41 | L129: 286.38 | M129: 295.47 | N129: 304.67 | O129: 314 | P129: 323.46 | Q129: 333.06 | R129: 342.8 | S129: 352.68 | T129: 362.7 | U129: 372.87 | V129: 383.18
B130: S | C130: 0.19829 | D130: 0.9321 | H130: 0.9362 | I130: 0.968 | J130: 0.9987 | K130: 1.0285 | L130: 1.0576 | M130: 1.0862 | N130: 1.1142 | O130: 1.1418 | P130: 1.169 | Q130: 1.1958 | R130: 1.2222 | S130: 1.2483 | T130: 1.2742 | U130: 1.2997 | V130: 1.325
A131: 293.01 | B131: V | C131: 0.0007723 | D131: 0.069255 | E131: 0 | I131: 0.0730871575 | J131: 0.07648332 | K131: 0.0797794825 | L131: 0.083005645 | M131: 0.0861718075 | N131: 0.0892947175 | O131: 0.0923776275 | P131: 0.095427285 | Q131: 0.098450195 | R131: 0.101453105 | S131: 0.104436015 | T131: 0.107398925 | U131: 0.1103485825 | V131: 0.11328824
B132: U | C132: 51.63 | D132: 230.16 | I132: 238.0325675 | J132: 245.9250925 | K132: 253.87786 | L132: 261.937375 | M132: 270.1236375 | N132: 278.4266475 | O132: 286.8696575 | P132: 295.4561625 | Q132: 304.18592 | R132: 313.0556775 | S132: 322.0721825 | T132: 331.2386875 | U132: 340.55194 | V132: 350.0151925
B133: H | C133: 51.86 | D133: 250.45 | I133: 259.3580025 | J133: 268.240285 | K133: 277.16281 | L133: 286.15883 | M133: 295.268345 | N133: 304.48786 | O133: 313.83087 | P133: 323.30388 | Q133: 332.91689 | R133: 342.6666475 | S133: 352.556405 | T133: 362.5861625 | U133: 372.7626675 | V133: 383.0791725
B134: S | C134: 0.20439 | D134: 0.93139 | I134: 0.9635766 | J134: 0.994439225 | K134: 1.0243368 | L134: 1.053534375 | M134: 1.082199425 | N134: 1.110264475 | O134: 1.137897 | P134: 1.165129525 | Q134: 1.19196205 | R134: 1.218394575 | S134: 1.2445271 | T134: 1.2704271 | U134: 1.295959625 | V134: 1.321259625
A135: 314.84 | B135: V | C135: 0.0007763 | D135: 0.064612 | E135: 2 | I135: 0.06742773 | J135: 0.07063288 | K135: 0.07373803 | L135: 0.07677318 | M135: 0.07974833 | N135: 0.08267477 | O135: 0.08556121 | P135: 0.08840894 | Q135: 0.09123538 | R135: 0.09404182 | S135: 0.09682826 | T135: 0.0995947 | U135: 0.10234243 | V135: 0.10508016
B136: U | C136: 54.3 | D136: 231.27 | I136: 237.63417 | J136: 245.58127 | K136: 253.57224 | L136: 261.6645 | M136: 269.87805 | N136: 278.20289 | O136: 286.66773 | P136: 295.26515 | Q136: 304.01128 | R136: 312.89741 | S136: 321.92483 | T136: 331.10225 | U136: 340.42096 | V136: 349.88967
B137: H | C137: 54.55 | D137: 251.61 | I137: 258.81771 | J137: 267.77094 | K137: 276.74804 | L137: 285.78772 | M137: 294.92998 | N137: 304.18224 | O137: 313.54708 | P137: 323.04192 | Q137: 332.67676 | R137: 342.44289 | S137: 352.34902 | T137: 362.39515 | U137: 372.58257 | V137: 382.90999
B138: S | C138: 0.21415 | D138: 0.93031 | I138: 0.9561544 | J138: 0.9872899 | K138: 1.0173512 | L138: 1.0467125 | M138: 1.0754867 | N138: 1.1036609 | O138: 1.131348 | P138: 1.1586351 | Q138: 1.1855222 | R138: 1.2120093 | S138: 1.2381964 | T138: 1.2640964 | U138: 1.2896835 | V138: 1.3149835
A139: 320 | B139: V | C139: 0.0007772 | D139: 0.063604 | E139: 2.46 | I139: 0.06609 | J139: 0.06925 | K139: 0.07231 | L139: 0.0753 | M139: 0.07823 | N139: 0.08111 | O139: 0.08395 | P139: 0.08675 | Q139: 0.08953 | R139: 0.09229 | S139: 0.09503 | T139: 0.09775 | U139: 0.10045 | V139: 0.10314
B140: U | C140: 54.92 | D140: 231.52 | I140: 237.54 | J140: 245.5 | K140: 253.5 | L140: 261.6 | M140: 269.82 | N140: 278.15 | O140: 286.62 | P140: 295.22 | Q140: 303.97 | R140: 312.86 | S140: 321.89 | T140: 331.07 | U140: 340.39 | V140: 349.86
B141: H | C141: 55.16 | D141: 251.88 | I141: 258.69 | J141: 267.66 | K141: 276.65 | L141: 285.7 | M141: 294.85 | N141: 304.11 | O141: 313.48 | P141: 322.98 | Q141: 332.62 | R141: 342.39 | S141: 352.3 | T141: 362.35 | U141: 372.54 | V141: 382.87
B142: S | C142: 0.21637 | D142: 0.93006 | I142: 0.9544 | J142: 0.9856 | K142: 1.0157 | L142: 1.0451 | M142: 1.0739 | N142: 1.1021 | O142: 1.1298 | P142: 1.1571 | Q142: 1.184 | R142: 1.2105 | S142: 1.2367 | T142: 1.2626 | U142: 1.2882 | V142: 1.3135
A143: 337.9 | B143: V | C143: 0.0007804 | D143: 0.060338 | E143: 4 | I143: 0.06282683 | J143: 0.06588547125 | K143: 0.0688387425 | L143: 0.07171821 | M143: 0.0745367825 | N143: 0.0773049075 | O143: 0.08003280875 | P143: 0.08272182875 | Q143: 0.08538905875 | R143: 0.08803517 | S143: 0.0906610575 | T143: 0.09326761625 | U143: 0.09585484625 | V143: 0.098431405
B144: U | C144: 56.99 | D144: 232.38 | I144: 237.1887125 | J144: 245.20465 | K144: 253.244925 | L144: 261.371775 | M144: 269.61415 | N144: 277.9642875 | O144: 286.44995 | P144: 295.0656125 | Q144: 303.8245625 | R144: 312.72575 | S144: 321.7647 | T144: 330.95365 | U144: 340.2803625 | V144: 349.7593125
B145: H | C145: 57.25 | D145: 252.77 | I145: 258.2178875 | J145: 267.25725 | K145: 276.296475 | L145: 285.38675 | M145: 294.568075 | N145: 303.8526875 | O145: 313.2473 | P145: 322.7652 | Q145: 332.4208625 | R145: 342.206525 | S145: 352.1277125 | T145: 362.1889 | U145: 372.3900875 | V145: 382.7290375
B146: S | C146: 0.22387 | D146: 0.92927 | I146: 0.949052375 | J146: 0.9804985 | K146: 1.0107775 | L146: 1.040289375 | M146: 1.069178875 | N146: 1.097468375 | O146: 1.1252355 | P146: 1.15258025 | Q146: 1.179525 | R146: 1.20606975 | S146: 1.2323145 | T146: 1.258236875 | U146: 1.28385925 | V146: 1.309181625
A147: 360 | B147: V | C147: 0.0007841 | D147: 0.056738 | E147: 5.82 | I147: 0.058798 | J147: 0.0617315 | K147: 0.064553 | L147: 0.067296 | M147: 0.069977 | N147: 0.072607 | O147: 0.0751965 | P147: 0.0777485 | Q147: 0.0802765 | R147: 0.082782 | S147: 0.085267 | T147: 0.0877335 | U147: 0.0901815 | V147: 0.092618
B148: U | C148: 59.44 | D148: 233.38 | I148: 236.755 | J148: 244.84 | K148: 252.93 | L148: 261.09 | M148: 269.36 | N148: 277.735 | O148: 286.24 | P148: 294.875 | Q148: 303.645 | R148: 312.56 | S148: 321.61 | T148: 330.81 | U148: 340.145 | V148: 349.635
B149: H | C149: 59.72 | D149: 253.81 | I149: 257.635 | J149: 266.76 | K149: 275.86 | L149: 285 | M149: 294.22 | N149: 303.535 | O149: 312.96 | P149: 322.5 | Q149: 332.175 | R149: 341.98 | S149: 351.915 | T149: 361.99 | U149: 372.205 | V149: 382.555
B150: S | C150: 0.2327 | D150: 0.92836 | I150: 0.94245 | J150: 0.9742 | K150: 1.0047 | L150: 1.03435 | M150: 1.06335 | N150: 1.09175 | O150: 1.1196 | P150: 1.147 | Q150: 1.174 | R150: 1.2006 | S150: 1.2269 | T150: 1.25285 | U150: 1.2785 | V150: 1.30385
A151: 362.23 | B151: V | C151: 0.0007845 | D151: 0.056398 | E151: 6 | I151: 0.058391471 | J151: 0.06131234363 | K151: 0.06412054725 | L151: 0.066849777 | M151: 0.06951689525 | N151: 0.07213295775 | O151: 0.07470849237 | P151: 0.07724666637 | Q151: 0.07976061737 | R151: 0.082251929 | S151: 0.08472271275 | T151: 0.08717508012 | U151: 0.08960903112 | V151: 0.0920313985
B152: U | C152: 59.68 | D152: 233.48 | I152: 236.7112362 | J152: 244.803205 | K152: 252.8982225 | L152: 261.0615675 | M152: 269.334355 | N152: 277.7118637 | O152: 286.218815 | P152: 294.8557662 | Q152: 303.6268812 | R152: 312.543275 | S152: 321.59439 | T152: 330.795505 | U152: 340.1313412 | V152: 349.6224563
B153: H | C153: 59.97 | D153: 253.91 | I153: 257.5761837 | J153: 266.709825 | K153: 275.8159575 | L153: 284.960975 | M153: 294.1848775 | N153: 303.5029437 | O153: 312.93101 | P153: 322.47324 | Q153: 332.1501913 | R153: 341.9571425 | S153: 351.8935363 | T153: 361.96993 | U153: 372.1863237 | V153: 382.5374387
B154: S | C154: 0.23356 | D154: 0.92828 | I154: 0.9417837875 | J154: 0.97356445 | K154: 1.00408675 | L154: 1.033750687 | M154: 1.062761838 | N154: 1.091172988 | O154: 1.11903135 | P154: 1.146436925 | Q154: 1.1734425 | R154: 1.200048075 | S154: 1.22635365 | T154: 1.252306437 | U154: 1.277959225 | V154: 1.303312012
A155: 387.88 | B155: V | C155: 0.0007887 | D155: 0.052762 | E155: 8 | I155: 0.053715476 | J155: 0.0564911055 | K155: 0.059146371 | L155: 0.061717212 | M155: 0.064224659 | N155: 0.066680409 | O155: 0.0690953105 | P155: 0.0714744545 | Q155: 0.0738268105 | R155: 0.076154924 | S155: 0.078462189 | T155: 0.0807519995 | U155: 0.0830243555 | V155: 0.085284166
B156: U | C156: 62.39 | D156: 234.58 | I156: 236.207855 | J156: 244.37998 | K156: 252.53271 | L156: 260.73453 | M156: 269.03938 | N156: 277.445745 | O156: 285.97514 | P156: 294.634535 | Q156: 303.418475 | R156: 312.3509 | S156: 321.41484 | T156: 330.62878 | U156: 339.974235 | V156: 349.478175
B157: H | C157: 62.69 | D157: 255.04 | I157: 256.899665 | J157: 266.1327 | K157: 275.30937 | L157: 284.5121 | M157: 293.78089 | N157: 303.134225 | O157: 312.59756 | P157: 322.16544 | Q157: 331.864835 | R157: 341.69423 | S157: 351.646655 | T157: 361.73908 | U157: 371.971505 | V157: 382.335445
B158: S | C158: 0.24323 | D158: 0.92733 | I158: 0.93412085 | J158: 0.9662542 | K158: 0.997033 | L158: 1.02685725 | M158: 1.05599665 | N158: 1.08453605 | O158: 1.1124906 | P158: 1.1399603 | Q158: 1.16703 | R158: 1.1936997 | S158: 1.2200694 | T158: 1.24605425 | U158: 1.2717391 | V158: 1.29712395
A159: 400 | B159: V | C159: 0.0007907 | D159: 0.051201 | E159: 8.91 | I159: 0.051506 | J159: 0.054213 | K159: 0.056796 | L159: 0.059292 | M159: 0.061724 | N159: 0.064104 | O159: 0.066443 | P159: 0.068747 | Q159: 0.071023 | R159: 0.073274 | S159: 0.075504 | T159: 0.077717 | U159: 0.079913 | V159: 0.082096
B160: U | C160: 63.62 | D160: 235.07 | I160: 235.97 | J160: 244.18 | K160: 252.36 | L160: 260.58 | M160: 268.9 | N160: 277.32 | O160: 285.86 | P160: 294.53 | Q160: 303.32 | R160: 312.26 | S160: 321.33 | T160: 330.55 | U160: 339.9 | V160: 349.41
B161: H | C161: 63.94 | D161: 255.55 | I161: 256.58 | J161: 265.86 | K161: 275.07 | L161: 284.3 | M161: 293.59 | N161: 302.96 | O161: 312.44 | P161: 322.02 | Q161: 331.73 | R161: 341.57 | S161: 351.53 | T161: 361.63 | U161: 371.87 | V161: 382.24
B162: S | C162: 0.24761 | D162: 0.92691 | I162: 0.9305 | J162: 0.9628 | K162: 0.9937 | L162: 1.0236 | M162: 1.0528 | N162: 1.0814 | O162: 1.1094 | P162: 1.1369 | Q162: 1.164 | R162: 1.1907 | S162: 1.2171 | T162: 1.2431 | U162: 1.2688 | V162: 1.2942
A163: 414.89 | B163: V | C163: 0.000793 | D163: 0.049403 | E163: 10 | J163: 0.0524116078 | K163: 0.0549410038 | L163: 0.0573807196 | M163: 0.0597547975 | N163: 0.0620761309 | O163: 0.0643560176 | P163: 0.0666004576 | Q163: 0.0688165998 | R163: 0.0710075931 | S163: 0.0731775864 | T163: 0.075330133 | U163: 0.0774659774 | V163: 0.079588524
B164: U | C164: 65.1 | D164: 235.67 | J164: 243.914958 | K164: 252.133672 | L164: 260.383452 | M164: 268.724298 | N164: 277.160677 | O164: 285.715567 | P164: 294.397479 | Q164: 303.199391 | R164: 312.146836 | S164: 321.22577 | T164: 330.451726 | U164: 339.809171 | V164: 349.323638
B165: H | C165: 65.43 | D165: 256.16 | J165: 265.50264 | K165: 274.763266 | L165: 284.029002 | M165: 293.347293 | N165: 302.742606 | O165: 312.240474 | P165: 321.838342 | Q165: 331.563232 | R165: 341.415144 | S165: 351.387056 | T165: 361.49599 | U165: 371.744924 | V165: 382.123858
B166: S | C166: 0.25286 | D166: 0.92641 | J166: 0.95915195 | K166: 0.99021574 | L166: 1.02024975 | M166: 1.04953909 | N166: 1.07819865 | O166: 1.10625821 | P166: 1.13381777 | Q166: 1.16096244 | R166: 1.18769222 | S166: 1.214122 | T166: 1.24015178 | U166: 1.26586667 | V166: 1.29129645
A167: 443.31 | B167: V | C167: 0.0007975 | D167: 0.046295 | E167: 12 | J167: 0.0489733562 | K167: 0.0514004402 | L167: 0.0537327284 | M167: 0.0559962525 | N167: 0.0582056111 | O167: 0.0603726704 | P167: 0.0625034304 | Q167: 0.0646053242 | R167: 0.0666817849 | S167: 0.0687372456 | T167: 0.070774407 | U167: 0.0727954346 | V167: 0.074802596
B168: U | C168: 67.83 | D168: 236.75 | J168: 243.409082 | K168: 251.701688 | L168: 260.008308 | M168: 268.388942 | N168: 276.856583 | O168: 285.439893 | P168: 294.144541 | Q168: 302.969189 | R168: 311.930844 | S168: 321.02683 | T168: 330.264154 | U168: 339.635809 | V168: 349.158802
B169: H | C169: 68.18 | D169: 257.27 | J169: 264.82056 | K169: 274.177814 | L169: 283.511758 | M169: 292.884047 | N169: 302.327674 | O169: 311.859646 | P169: 321.491618 | Q169: 331.244928 | R169: 341.119576 | S169: 351.114224 | T169: 361.24021 | U169: 371.506196 | V169: 381.902182
B170: S | C170: 0.26246 | D170: 0.92554 | J170: 0.95218905 | K170: 0.98356546 | L170: 1.01385525 | M170: 1.04331511 | N170: 1.07208835 | O170: 1.10026159 | P170: 1.12793483 | Q170: 1.15516476 | R170: 1.18195138 | S170: 1.208438 | T170: 1.23452462 | U170: 1.26026793 | V170: 1.28575455
A171: 450 | B171: V | C171: 0.0007985 | D171: 0.045619 | E171: 12.46 | J171: 0.048164 | K171: 0.050567 | L171: 0.052874 | M171: 0.0551115 | N171: 0.0572945 | O171: 0.059435 | P171: 0.061539 | Q171: 0.063614 | R171: 0.0656635 | S171: 0.067692 | T171: 0.069702 | U171: 0.071696 | V171: 0.073676
B172: U | C172: 68.45 | D172: 237 | J172: 243.29 | K172: 251.6 | L172: 259.92 | M172: 268.31 | N172: 276.785 | O172: 285.375 | P172: 294.085 | Q172: 302.915 | R172: 311.88 | S172: 320.98 | T172: 330.22 | U172: 339.595 | V172: 349.12
B173: H | C173: 68.81 | D173: 257.53 | J173: 264.66 | K173: 274.04 | L173: 283.39 | M173: 292.775 | N173: 302.23 | O173: 311.77 | P173: 321.41 | Q173: 331.17 | R173: 341.05 | S173: 351.05 | T173: 361.18 | U173: 371.45 | V173: 381.85
B174: S | C174: 0.26465 | D174: 0.92535 | J174: 0.95055 | K174: 0.982 | L174: 1.01235 | M174: 1.04185 | N174: 1.07065 | O174: 1.09885 | P174: 1.12655 | Q174: 1.1538 | R174: 1.1806 | S174: 1.2071 | T174: 1.2332 | U174: 1.25895 | V174: 1.28445
A175: 473.19 | B175: V | C175: 0.000802 | D175: 0.043417 | E175: 14 | J175: 0.0453584738 | K175: 0.0476779898 | L175: 0.0498973316 | M175: 0.0520446225 | N175: 0.0541362539 | O175: 0.0561846896 | P175: 0.0581959296 | Q175: 0.0601777058 | R175: 0.0621337501 | S175: 0.0640687944 | T175: 0.065984643 | U175: 0.0678849554 | V175: 0.069770804
B176: U | C176: 70.57 | D176: 237.83 | J176: 242.877218 | K176: 251.247512 | L176: 259.613892 | M176: 268.036358 | N176: 276.536867 | O176: 285.150057 | P176: 293.878609 | Q176: 302.727161 | R176: 311.703756 | S176: 320.81767 | T176: 330.066946 | U176: 339.453541 | V176: 348.985498
B177: H | C177: 70.95 | D177: 258.37 | J177: 264.10344 | K177: 273.562286 | L177: 282.967942 | M177: 292.397003 | N177: 301.891426 | O177: 311.459254 | P177: 321.127082 | Q177: 330.910272 | R177: 340.808824 | S177: 350.827376 | T177: 360.97129 | U177: 371.255204 | V177: 381.669118
B178: S | C178: 0.27204 | D178: 0.9247 | J178: 0.94486845 | K178: 0.97657354 | L178: 1.00713225 | M178: 1.03677139 | N178: 1.06566415 | O178: 1.09395691 | P178: 1.12174967 | Q178: 1.14906924 | R178: 1.17591562 | S178: 1.202462 | T178: 1.22860838 | U178: 1.25438157 | V178: 1.27992795
A179: 500 | B179: V | C179: 0.0008059 | D179: 0.041118 | E179: 15.71 | J179: 0.042115 | K179: 0.044338 | L179: 0.046456 | M179: 0.048499 | N179: 0.050485 | O179: 0.052427 | P179: 0.054331 | Q179: 0.056205 | R179: 0.058053 | S179: 0.05988 | T179: 0.061687 | U179: 0.063479 | V179: 0.065256 | W179: 0.067021 | X179: 0.068775
B180: U | C180: 72.93 | D180: 238.75 | J180: 242.4 | K180: 250.84 | L180: 259.26 | M180: 267.72 | N180: 276.25 | O180: 284.89 | P180: 293.64 | Q180: 302.51 | R180: 311.5 | S180: 320.63 | T180: 329.89 | U180: 339.29 | V180: 348.83 | W180: 358.51 | X180: 368.33
B181: H | C181: 73.33 | D181: 259.3 | J181: 263.46 | K181: 273.01 | L181: 282.48 | M181: 291.96 | N181: 301.5 | O181: 311.1 | P181: 320.8 | Q181: 330.61 | R181: 340.53 | S181: 350.57 | T181: 360.73 | U181: 371.03 | V181: 381.46 | W181: 392.02 | X181: 402.72
B182: S | C182: 0.28023 | D182: 0.924 | J182: 0.9383 | K182: 0.9703 | L182: 1.0011 | M182: 1.0309 | N182: 1.0599 | O182: 1.0883 | P182: 1.1162 | Q182: 1.1436 | R182: 1.1705 | S182: 1.1971 | T182: 1.2233 | U182: 1.2491 | V182: 1.2747 | W182: 1.2999 | X182: 1.3249
A183: 504.58 | B183: V | C183: 0.0008066 | D183: 0.040748 | E183: 16 | J183: 0.04172442584 | K183: 0.0439553868 | L183: 0.0460625322 | M183: 0.048094128 | N183: 0.0500684032 | O183: 0.0519984036 | P183: 0.0538903582 | Q183: 0.0557521754 | R183: 0.0575879926 | S183: 0.0594026724 | T183: 0.061197398 | U183: 0.062977032 | V183: 0.0647417118 | W183: 0.0664943458 | X183: 0.0682359798
B184: U | C184: 73.32 | D184: 238.9 | J184: 242.3123019 | K184: 250.765804 | L184: 259.19588 | M184: 267.663208 | N184: 276.19962 | O184: 284.8442 | P184: 293.598322 | Q184: 302.471528 | R184: 311.464734 | S184: 320.597024 | T184: 329.859772 | U184: 339.261604 | V184: 348.803436 | W184: 358.48481 | X184: 368.306184
B185: H | C185: 73.73 | D185: 259.46 | J185: 263.3411628 | K185: 272.90924 | L185: 282.39298 | M185: 291.883056 | N185: 301.430384 | O185: 311.037254 | P185: 320.74275 | Q185: 330.55733 | R185: 340.481452 | S185: 350.525116 | T185: 360.688322 | U185: 370.99107 | V185: 381.42336 | W185: 391.98565 | X185: 402.687482
B186: S | C186: 0.28159 | D186: 0.92389 | J186: 0.9372857527 | K186: 0.96936568 | L186: 1.0002069 | M186: 1.03003896 | N186: 1.05906644 | O186: 1.08748476 | P186: 1.1153985 | Q186: 1.14281224 | R186: 1.16972598 | S186: 1.19633056 | T186: 1.22253972 | U186: 1.24834888 | V186: 1.27395346 | W186: 1.29916262 | X186: 1.32416262
A187: 537.52 | B187: V | C187: 0.0008113 | D187: 0.038271 | E187: 18 | J187: 0.03891536187 | K187: 0.0412035792 | L187: 0.0432326568 | M187: 0.045182232 | N187: 0.0470721808 | O187: 0.0489158784 | P187: 0.0507212008 | Q187: 0.0524953976 | R187: 0.0542435944 | S187: 0.0559696656 | T187: 0.057676112 | U187: 0.059366808 | V187: 0.0610428792 | W187: 0.0627065752 | X187: 0.0643592712
B188: U | C188: 76.08 | D188: 239.96 | J188: 241.6815651 | K188: 250.232176 | L188: 258.73472 | M188: 267.254752 | N188: 275.83728 | O188: 284.5148 | P188: 293.298568 | Q188: 302.194832 | R188: 311.211096 | S188: 320.359856 | T188: 329.642368 | U188: 339.057376 | V188: 348.612384 | W188: 358.30364 | X188: 368.134896
B189: H | C189: 76.52 | D189: 260.53 | J189: 262.4864687 | K189: 272.18456 | L189: 281.76712 | M189: 291.329664 | N189: 300.929696 | O189: 310.585976 | P189: 320.331 | Q189: 330.17852 | R189: 340.132288 | S189: 350.202304 | T189: 360.388568 | U189: 370.71108 | V189: 381.15984 | W189: 391.7386 | X189: 402.453608
B190: S | C190: 0.29112 | D190: 0.9231 | J190: 0.9299911447 | K190: 0.96264592 | L190: 0.9937836 | M190: 1.02384624 | N190: 1.05307136 | O190: 1.08162144 | P190: 1.109634 | Q190: 1.13714656 | R190: 1.16415912 | S190: 1.19079664 | T190: 1.21707168 | U190: 1.24294672 | V190: 1.26858424 | W190: 1.29385928 | X190: 1.31885928
A191: 550 | B191: V | C191: 0.000813 | D191: 0.037408 | E191: 18.73 | J191: 0.03785108991 | K191: 0.040161 | L191: 0.0421605 | M191: 0.044079 | N191: 0.045937 | O191: 0.047748 | P191: 0.0495205 | Q191: 0.0512615 | R191: 0.0529765 | S191: 0.054669 | T191: 0.056342 | U191: 0.057999 | V191: 0.0596415 | W191: 0.0612715 | X191: 0.0628905
B192: U | C192: 77.1 | D192: 240.35 | J192: 241.4425975 | K192: 250.03 | L192: 258.56 | M192: 267.1 | N192: 275.7 | O192: 284.39 | P192: 293.185 | Q192: 302.09 | R192: 311.115 | S192: 320.27 | T192: 329.56 | U192: 338.98 | V192: 348.54 | W192: 358.235 | X192: 368.07
B193: H | C193: 77.54 | D193: 260.92 | J193: 262.1626502 | K193: 271.91 | L193: 281.53 | M193: 291.12 | N193: 300.74 | O193: 310.415 | P193: 320.175 | Q193: 330.035 | R193: 340 | S193: 350.08 | T193: 360.275 | U193: 370.605 | V193: 381.06 | W193: 391.645 | X193: 402.365
B194: S | C194: 0.29461 | D194: 0.92282 | J194: 0.9272274317 | K194: 0.9601 | L194: 0.99135 | M194: 1.0215 | N194: 1.0508 | O194: 1.0794 | P194: 1.10745 | Q194: 1.135 | R194: 1.16205 | S194: 1.1887 | T194: 1.215 | U194: 1.2409 | V194: 1.26655 | W194: 1.29185 | X194: 1.31685
A195: 572.07 | B195: V | C195: 0.0008161 | D195: 0.035969 | E195: 20 | J195: 0.035969 | K195: 0.0383172722 | L195: 0.0402644663 | M195: 0.042128012 | N195: 0.0439295128 | O195: 0.0456826894 | P195: 0.0473971453 | Q195: 0.0490794391 | R195: 0.0507357329 | S195: 0.0523688646 | T195: 0.053982717 | U195: 0.055580128 | V195: 0.0571632597 | W195: 0.0587336707 | X195: 0.0602930817
B196: U | C196: 78.86 | D196: 241.02 | J196: 241.02 | K196: 249.672466 | L196: 258.25102 | M196: 266.826332 | N196: 275.45723 | O196: 284.1693 | P196: 292.984163 | Q196: 301.904612 | R196: 310.945061 | S196: 320.111096 | T196: 329.414338 | U196: 338.843166 | V196: 348.411994 | W196: 358.113615 | X196: 367.955236
B197: H | C197: 79.32 | D197: 261.59 | J197: 261.59 | K197: 271.42446 | L197: 281.11067 | M197: 290.749224 | N197: 300.404536 | O197: 310.112641 | P197: 319.899125 | Q197: 329.781195 | R197: 339.766058 | S197: 349.863714 | T197: 360.074163 | U197: 370.417405 | V197: 380.88344 | W197: 391.479475 | X197: 402.208303
B198: S | C198: 0.30063 | D198: 0.92234 | J198: 0.92234 | K198: 0.95559772 | L198: 0.98704635 | M198: 1.01735084 | N198: 1.04678326 | O198: 1.07547154 | P198: 1.10358775 | Q198: 1.13120396 | R198: 1.15832017 | S198: 1.18499224 | T198: 1.21133638 | U198: 1.23728052 | V198: 1.26295259 | W198: 1.28829673 | X198: 1.31329673
A199: 600 | B199: V | C199: 0.0008199 | D199: 0.034295 | E199: 21.55 | K199: 0.035984 | L199: 0.037865 | M199: 0.039659 | N199: 0.041389 | O199: 0.043069 | P199: 0.04471 | Q199: 0.046318 | R199: 0.0479 | S199: 0.049458 | T199: 0.050997 | U199: 0.052519 | V199: 0.054027 | W199: 0.055522 | X199: 0.057006
B200: U | C200: 81.02 | D200: 241.83 | K200: 249.22 | L200: 257.86 | M200: 266.48 | N200: 275.15 | O200: 283.89 | P200: 292.73 | Q200: 301.67 | R200: 310.73 | S200: 319.91 | T200: 329.23 | U200: 338.67 | V200: 348.25 | W200: 357.96 | X200: 367.81
... 166 more rows

Sheet CALCULOS (hidden)
B1: SOBRESATURACION | F1: SATURACION | O1: ENTROPIA | S1: VOLUMEN DADO | V1: ENTALPIA | AA1: INTERNA | AG1: VOLUMEN | AM1: SOBRESATURACION/SATURACION | AR1: CALIDAD/ENTROPIA | AY1: CALIDAD/ENTALPIA | BF1: TEMPERATURA/ENTALPIA SS | BL1: TEMPERATURA/ENTROPIA SS | BR1: TEMPERATURA/INTERNA SS | BW1: TEMPERATURA/VOLUMEN SS | CB1: PRESION/VOLUMEN SS | CG1: PRESION/ENTROPIA LCOMP
F2: PRESION | J2: TEMPERATURA | O2: P = | P2: 100 | Q2: kPa | V2: P = | W2: 100 | X2: kPa | AA2: P = | AB2: 100 | AC2: kPa | AG2: P = | AI2: kPa
O3: Scte = | P3: 0.9535 | Q3: kJ/kg*ºK | V3: H = | W3: 219.5 | X3: kJ/kg | AA3: U = | AB3: 219.5 | AC3: kJ/kg | AG3: V = | AI3: m3/kg | AR3: x = | AY3: x = | BF3: T = | BL3: T = | BR3: T = | BW3: T = | CB3: P = | CG3: P =
B4: P = | C4: 1000 | F4: P = | G4: 1000 | H4: kPa | J4: T = | K4: 20 | L4: ºC | O4: T = | Q4: ºC | S4: P = | U4: kPa | V4: T = | X4: ºC | AA4: T = | AC4: ºC | AG4: T = | AI4: ºC | AM4: P = | AO4: kPa | AR4: S = | AY4: H = | BF4: H = | BL4: S = | BR4: U = | BW4: V = | BY4: m3/kg | CB4: V = | CD4: m3/kg | CG4: S =
B5: T = | C5: 40 | F5: T = | G5: =+CALCULOS!J13+(CALCULOS!J17-CALCULOS!J13)*(CALCULOS!$G$13-$G$4)/(CALCULOS!$G$13-CALCULOS!$G$17) -> 43.74835303 | H5: ºC | J5: P = | K5: =+CALCULOS!G13+(CALCULOS!G17-CALCULOS!G13)*(CALCULOS!$J$13-$K$4)/(CALCULOS!$J$13-CALCULOS!$J$17) -> 572.07 | L5: kPa | O5: SLsat = | Q5: kJ/kg*ºK | S5: T = | U5: ºC | V5: SLsat = | X5: kJ/kg*ºK | AA5: SLsat = | AC5: kJ/kg*ºK | AG5: SLsat = | AI5: kJ/kg*ºK | AM5: T = | AO5: ºC | AR5: P = | AS5: =+AR18+(AR18-AR14)*($AS$4-$AV$17)/($AV$21-$AV$17+0.0000001) ->  | AY5: P = | AZ5: =+AY18+(AY18-AY14)*($AZ$4-$BC$16)/($BC$20-$BC$16+0.0000001) ->  | BF5: P = | BG5: =+BF14+(BF18-BF14)*($BG$4-$BI$16)/($BI$20-$BI$16+0.0000001) ->  | BL5: P = | BM5: =+BL14+(BL18-BL14)*($BM$4-$BO$17)/($BO$21-$BO$17+0.0000001) ->  | BR5: P = | BS5: =+BR14+(BR18-BR14)*($BS$4-$BU$15)/($BU$19-$BU$15+0.0000001) ->  | BW5: P = | BX5: =+BW14+(BW18-BW14)*($BX$4-$BZ$14)/($BZ$18-$BZ$14+0.0000001) ->  | CB5: T = | CC5: =+CC13+(CD13-CC13)*(CC4-CC22)/(CD22-CC22) ->  | CG5: T = | CH5: =+CH13+(CI13-CH13)*(CH4-CH25)/(CI25-CH25) -> 
B6: V = | C6: =+CALCULOS!C13+(CALCULOS!C17-CALCULOS!C13)*(CALCULOS!$B$13-$C$4)/(CALCULOS!$B$13-CALCULOS!$B$17) -> 0.020406 | F6: VL = | G6: =+CALCULOS!H13+(CALCULOS!H17-CALCULOS!H13)*(CALCULOS!$G$13-$G$4)/(CALCULOS!$G$13-CALCULOS!$G$17) -> 0.0008743217687 | H6: =+CALCULOS!I13+(CALCULOS!I17-CALCULOS!I13)*(CALCULOS!$G$13-$G$4)/(CALCULOS!$G$13-CALCULOS!$G$17) -> 0.01032077873 | I6: m3/kg | J6: Vv = | K6: =+CALCULOS!H13+(CALCULOS!H17-CALCULOS!H13)*(CALCULOS!$J$13-$K$4)/(CALCULOS!$J$13-CALCULOS!$J$17) -> 0.0008161 | L6: =+CALCULOS!I13+(CALCULOS!I17-CALCULOS!I13)*(CALCULOS!$J$13-$K$4)/(CALCULOS!$J$13-CALCULOS!$J$17) -> 0.035969 | M6: m3/kg | O6: SVsat = | Q6: kJ/kg*ºK | S6: x = | V6: SVsat = | X6: kJ/kg*ºK | AA6: SVsat = | AC6: kJ/kg*ºK | AG6: SVsat = | AI6: kJ/kg*ºK | AM6: V = | AO6: m3/kg | AR6: T = | AS6: =+AU18+(AU18-AU14)*($AS$4-$AV$17)/($AV$21-$AV$17+0.000001) ->  | AY6: T = | AZ6: =+BB18+(BB18-BB14)*($AZ$4-$BC$16)/($BC$20-$BC$16+0.000001) ->  | BF6: x = | BG6: Sobresaturado | BL6: x = | BM6: Sobresaturado | BR6: x = | BS6: Sobresaturado | BW6: x = | BX6: Sobresaturado | CB6: x = | CC6: Sobresaturado | CG6: x = | CH6: Liq. Compr.
B7: U = | C7: =+CALCULOS!C14+(CALCULOS!C18-CALCULOS!C14)*(CALCULOS!$B$13-$C$4)/(CALCULOS!$B$13-CALCULOS!$B$17) -> 251.3 | D7: 0.13751 | F7: UL = | G7: =+CALCULOS!H14+(CALCULOS!H18-CALCULOS!H14)*(CALCULOS!$G$13-$G$4)/(CALCULOS!$G$13-CALCULOS!$G$17) -> 111.9544791 | H7: =+CALCULOS!I14+(CALCULOS!I18-CALCULOS!I14)*(CALCULOS!$G$13-$G$4)/(CALCULOS!$G$13-CALCULOS!$G$17) -> 253.4304296 | I7: kJ/kg | J7: Uv = | K7: =+CALCULOS!H14+(CALCULOS!H18-CALCULOS!H14)*(CALCULOS!$J$13-$K$4)/(CALCULOS!$J$13-CALCULOS!$J$17) -> 78.86 | L7: =+CALCULOS!I14+(CALCULOS!I18-CALCULOS!I14)*(CALCULOS!$J$13-$K$4)/(CALCULOS!$J$13-CALCULOS!$J$17) -> 241.02 | M7: kJ/kg | O7: xs = | P7: =+IF((P3-P5)/(P6-P5)>1,"Sobresaturado",(P3-P5)/(P6-P5)) ->  | S7: V = | U7: m3/kg | V7: xs = | W7: =+IF((W3-W5)/(W6-W5)>1,"Sobresaturado",(W3-W5)/(W6-W5)) ->  | AA7: xs = | AB7: =+IF((AB3-AB5)/(AB6-AB5)>1,"Sobresaturado",(AB3-AB5)/(AB6-AB5)) ->  | AG7: xs = | AH7: =+IF((AH3-AH5)/(AH6-AH5)>1,"Sobresaturado",(AH3-AH5)/(AH6-AH5)) ->  | AM7: U = | AO7: kJ/kg | AR7: V = | AS7: =+AV18+(AV18-AV14)*($AS$4-$AV$17)/($AV$21-$AV$17+0.000001) ->  | AT7: m3/kg | AY7: V = | AZ7: =+BC18+(BC18-BC14)*($AZ$4-$BC$16)/($BC$20-$BC$16+0.000001) ->  | BA7: m3/kg | BF7: V = | BG7: =+BI14+(BI18-BI14)*($BG$4-$BI$16)/($BI$20-$BI$16+0.0000001) ->  | BH7: m3/kg | BL7: V = | BM7: =+BO14+(BO18-BO14)*($BM$4-$BO$17)/($BO$21-$BO$17+0.0000001) ->  | BN7: m3/kg | BR7: V = | BS7: =+BU14+(BU18-BU14)*($BS$4-$BU$15)/($BU$19-$BU$15+0.0000001) ->  | BT7: m3/kg | BW7: U = | BX7: =+BZ15+(BZ19-BZ15)*($BX$4-$BZ$14)/($BZ$18-$BZ$14+0.0000001) ->  | CB7: U = | CC7: =+CC23+(CD23-CC23)*($CC$4-$CC$22)/($CD$22-$CC$22) ->  | CG7: V = | CH7: =+CH22+(CI22-CH22)*($CH$4-$CH$25)/($CI$25-$CH$25) ->  | CI7: m3/kg
B8: H = | C8: =+CALCULOS!C15+(CALCULOS!C19-CALCULOS!C15)*(CALCULOS!$B$13-$C$4)/(CALCULOS!$B$13-CALCULOS!$B$17) -> 271.71 | D8: 225.6875 | F8: HL = | G8: =+CALCULOS!H15+(CALCULOS!H19-CALCULOS!H15)*(CALCULOS!$G$13-$G$4)/(CALCULOS!$G$13-CALCULOS!$G$17) -> 112.8741246 | H8: =+CALCULOS!I15+(CALCULOS!I19-CALCULOS!I15)*(CALCULOS!$G$13-$G$4)/(CALCULOS!$G$13-CALCULOS!$G$17) -> 274.0004296 | I8: kJ/kg | J8: Hv = | K8: =+CALCULOS!H15+(CALCULOS!H19-CALCULOS!H15)*(CALCULOS!$J$13-$K$4)/(CALCULOS!$J$13-CALCULOS!$J$17) -> 79.32 | L8: =+CALCULOS!I15+(CALCULOS!I19-CALCULOS!I15)*(CALCULOS!$J$13-$K$4)/(CALCULOS!$J$13-CALCULOS!$J$17) -> 261.59 | M8: kJ/kg | O8: V = | Q8: m3/kg | S8: U = | U8: kJ/kg | V8: V = | X8: cm3/g | AA8: V = | AC8: m3/kg | AG8: U = | AI8: kJ/kg | AM8: H = | AO8: kJ/kg | AR8: U = | AS8: =+AV19+(AV19-AV15)*($AS$4-$AV$17)/($AV$21-$AV$17+0.000001) ->  | AY8: U = | AZ8: =+BC19+(BC19-BC15)*($AZ$4-$BC$16)/($BC$20-$BC$16+0.000001) ->  | BF8: U = | BG8: =+BI15+(BI19-BI15)*($BG$4-$BI$16)/($BI$20-$BI$16+0.0000001) ->  | BL8: U = | BM8: =+BO15+(BO19-BO15)*($BM$4-$BO$17)/($BO$21-$BO$17+0.0000001) ->  | BR8: H = | BS8: =+BU16+(BU20-BU16)*($BS$4-$BU$15)/($BU$19-$BU$15+0.0000001) ->  | BW8: H = | BX8: =+BZ16+(BZ20-BZ16)*($BX$4-$BZ$14)/($BZ$18-$BZ$14+0.0000001) ->  | CB8: H = | CC8: =+CC24+(CD24-CC24)*($CC$4-$CC$22)/($CD$22-$CC$22) ->  | CG8: U = | CH8: =+CH23+(CI23-CH23)*($CH$4-$CH$25)/($CI$25-$CH$25) -> 
B9: S = | C9: =+CALCULOS!C16+(CALCULOS!C20-CALCULOS!C16)*(CALCULOS!$B$13-$C$4)/(CALCULOS!$B$13-CALCULOS!$B$17) -> 0.9179 | F9: SL = | G9: =+CALCULOS!H16+(CALCULOS!H20-CALCULOS!H16)*(CALCULOS!$G$13-$G$4)/(CALCULOS!$G$13-CALCULOS!$G$17) -> 0.4133963731 | H9: =+CALCULOS!I16+(CALCULOS!I20-CALCULOS!I16)*(CALCULOS!$G$13-$G$4)/(CALCULOS!$G$13-CALCULOS!$G$17) -> 0.9136067347 | I9: kJ/kg | J9: Sv = | K9: =+CALCULOS!H16+(CALCULOS!H20-CALCULOS!H16)*(CALCULOS!$J$13-$K$4)/(CALCULOS!$J$13-CALCULOS!$J$17) -> 0.30063 | L9: =+CALCULOS!I16+(CALCULOS!I20-CALCULOS!I16)*(CALCULOS!$J$13-$K$4)/(CALCULOS!$J$13-CALCULOS!$J$17) -> 0.92234 | M9: kJ/kg | O9: U = | Q9: kJ/kg | S9: H = | U9: kJ/kg | V9: U = | X9: kJ/kg | AA9: H = | AC9: kJ/kg | AG9: H = | AI9: kJ/kg | AM9: S = | AO9: kJ/kg | AR9: H = | AS9: =+AV20+(AV20-AV16)*($AS$4-$AV$17)/($AV$21-$AV$17+0.000001) ->  | AY9: S = | AZ9: =+BC21+(BC21-BC17)*($AZ$4-$BC$16)/($BC$20-$BC$16+0.000001) ->  | BF9: S = | BG9: =+BI17+(BI21-BI17)*($BG$4-$BI$16)/($BI$20-$BI$16+0.0000001) ->  | BL9: H = | BM9: =+BO16+(BO20-BO16)*($BM$4-$BO$17)/($BO$21-$BO$17+0.0000001) ->  | BR9: S = | BS9: =+BU17+(BU21-BU17)*($BS$4-$BU$15)/($BU$19-$BU$15+0.0000001) ->  | BW9: S = | BX9: =+BZ17+(BZ21-BZ17)*($BX$4-$BZ$14)/($BZ$18-$BZ$14+0.0000001) ->  | CB9: S = | CC9: =+CC25+(CD25-CC25)*($CC$4-$CC$22)/($CD$22-$CC$22) ->  | CG9: H = | CH9: =+CH24+(CI24-CH24)*($CH$4-$CH$25)/($CI$25-$CH$25) -> 
O10: HLsat = | Q10: kJ/kg | S10: S = | U10: kJ/kg | V10: HLsat = | X10: kJ/kg | AA10: HLsat = | AC10: kJ/kg | AG10: HLsat = | AI10: kJ/kg
G11: G - 7 | K11: K - 11 | O11: HVsat = | Q11: kJ/kg | V11: HVsat = | X11: kJ/kg | AA11: HVsat = | AC11: kJ/kg | AG11: HVsat = | AI11: kJ/kg | AN11: AN - 40 | AS11: AS - 45 | AZ11: AZ - 52 | BG11: BG - 59 | BM11: BM - 65 | BS11: BS - 71 | BX11: BX - 76 | CC11: CC - 81 | CH11: CH - 86
C12: 40 | D12: 50 | O12: Hs = | P12: =+IF((P3-P5)/(P6-P5)>1,"Sobresaturado",P10+P7*(P11-P10)) ->  | Q12: kJ/kg | T12: T -20 | V12: Scte = | W12: =+IF((W3-W5)/(W6-W5)>1,"Sobresaturado",W10+W7*(W11-W10)) ->  | X12: kJ/kg*ºK | AA12: Scte = | AB12: =+IF((AB3-AB5)/(AB6-AB5)>1,"Sobresaturado",AB10+AB7*(AB11-AB10)) ->  | AC12: kJ/kg*ºK | AG12: Scte = | AH12: =+IF((AH3-AH5)/(AH6-AH5)>1,"Sobresaturado",AH10+AH7*(AH11-AH10)) ->  | AI12: kJ/kg*ºK | AP12: =+AN12+(AO12-AN12)*(DATA!D5-CALCULOS!AN12) -> 0
B13: 1000 | C13: 0.020406 | D13: 0.021796 | E13: =+C13+(D13-C13)*($C$5-$C$12)/($D$12-$C$12) -> 0.020406 | G13: 572.07 | H13: 0.0008161 | I13: 0.035969 | J13: 20 | O13: H = | P13: =+IF((P3-P5)/(P6-P5)>1,#REF!,P10+P7*(P11-P10)) ->  | Q13: kJ/kg | V13: Hs = | W13: =+IF((W3-W5)/(W6-W5)>1,AB19,W10+W7*(W11-W10)) ->  | X13: kJ/kg | AA13: Hs = | AB13: =+IF((AB3-AB5)/(AB6-AB5)>1,AG19,AB10+AB7*(AB11-AB10)) ->  | AC13: kJ/kg | AG13: Hs = | AH13: =+IF((AH3-AH5)/(AH6-AH5)>1,AM19,AH10+AH7*(AH11-AH10)) ->  | AI13: kJ/kg | AP13: =+AN13+(AO13-AN13)*(DATA!D5-CALCULOS!AN12) -> 0 | AW13: x | BD13: x | BJ13: x
C14: 251.3 | D14: 260.94 | E14: =+C14+(D14-C14)*($C$5-$C$12)/($D$12-$C$12) -> 251.3 | H14: 78.86 | I14: 241.02 | O14: x = | P14: =+IF(P12="Sobresaturado","Sobresaturado",(P12-P10)/(P11-P10)) ->  | V14: x = | W14: =+IF(W12="Sobresaturado","Sobresaturado",(W12-W10)/(W11-W10)) ->  | AA14: x = | AB14: =+IF(AB12="Sobresaturado","Sobresaturado",(AB12-AB10)/(AB11-AB10)) ->  | AG14: x = | AH14: =+IF(AH12="Sobresaturado","Sobresaturado",(AH12-AH10)/(AH11-AH10)) ->  | AP14: =+AN14+(AO14-AN14)*(DATA!D5-CALCULOS!AN12) -> 0 | AV14: =+AS14+$AW$14*(AT14-AS14) ->  | AW14: =+(AS4-AS17)/(AT17-AS17) ->  | BC14: =+AZ14+$BD$14*(BA14-AZ14) ->  | BD14: =+(AZ4-AZ16)/(BA16-AZ16) ->  | BI14: =+BG14+(BH14-BG14)*($BG$3-$BG$13)/(BH$13-$BG$13) ->  | BJ14: =+(BG4-$K$8)/($L$8-$K$8) -> -0.4351785812 | BO14: =+BM14+(BN14-BM14)*($BM$3-$BM$13)/(BN$13-$BM$13) ->  | BU14: =+BS14+(BT14-BS14)*($BS$3-$BS$13)/(BT$13-$BS$13) ->  | BZ14: =+BX14+(BY14-BX14)*($BX$3-$BX$13)/(BY$13-$BX$13) -> 
C15: 271.71 | D15: 282.74 | E15: 271.71 | H15: 79.32 | I15: 261.59 | O15: S = | P15: =+IF(P12="Sobresaturado",#REF!,P5+P14*(P6-P5)) ->  | Q15: kJ/kg*ºK | V15: S = | W15: =+IF(W12="Sobresaturado",AB20,W5+W14*(W6-W5)) ->  | X15: kJ/kg*ºK | AA15: S = | AB15: =+IF(AB12="Sobresaturado",AG20,AB5+AB14*(AB6-AB5)) ->  | AC15: kJ/kg*ºK | AG15: S = | AH15: =+IF(AH12="Sobresaturado",AM20,AH5+AH14*(AH6-AH5)) ->  | AI15: kJ/kg*ºK | AP15: =+AN15+(AO15-AN15)*(DATA!D5-CALCULOS!AN12) -> 0 | AV15: =+AS15+$AW$14*(AT15-AS15) ->  | BC15: =+AZ15+$BD$14*(BA15-AZ15) ->  | BI15: =+BG15+(BH15-BG15)*($BG$3-$BG$13)/(BH$13-$BG$13) ->  | BO15: =+BM15+(BN15-BM15)*($BM$3-$BM$13)/(BN$13-$BM$13) -> 
C16: 0.9179 | D16: 0.9525 | E16: 0.9179 | H16: 0.30063 | I16: 0.92234 | AP16: =+AN16+(AO16-AN16)*(DATA!D5-CALCULOS!AN12) -> 0 | AV16: =+AS16+$AW$14*(AT16-AS16) ->  | BC16: =+AZ16+$BD$14*(BA16-AZ16) ->  | BO16: =+BM16+(BN16-BM16)*($BM$3-$BM$13)/(BN$13-$BM$13) -> 
B17: 1017.1 | C17: 0.019952 | D17: 0.0214031275 | E17: =+C17+(D17-C17)*($C$5-$C$12)/($D$12-$C$12) -> 0.019952 | G17: 600 | H17: 0.0008199 | I17: 0.034295 | J17: 21.55 | P17: P-16 | W17: W-23 | AB17: AB-28 | AH17: AH-34 | AP17: =+AN17+(AO17-AN17)*(DATA!$D$5-CALCULOS!AN12) -> 0 | AV17: =+AS17+$AW$14*(AT17-AS17) ->  | BC17: =+AZ17+$BD$14*(BA17-AZ17) ->  | BO17: =+BM17+(BN17-BM17)*($BM$3-$BM$13)/(BN$13-$BM$13) -> 
C18: 250.97 | D18: 260.656995 | E18: 250.97 | H18: 81.02 | I18: 241.83 | AP18: =+AN18+(AO18-AN18)*(DATA!$D$5-CALCULOS!AN12) -> 0 | AV18: =+AS18+$AW$18*(AT18-AS18) ->  | AW18: =+(AS4-AS21)/(AT21-AS21) ->  | BC18: =+AZ18+$BD$18*(BA18-AZ18) ->  | BD18: =+(AZ4-AZ20)/(BA20-AZ20) ->  | BO18: =+BM18+(BN18-BM18)*($BM$3-$BM$13)/(BN$13-$BM$13) -> 
C19: 271.27 | D19: 282.357815 | E19: 271.27 | H19: 81.51 | I19: 262.4 | AP19: =+AN19+(AO19-AN19)*(DATA!$D$5-CALCULOS!AN12) -> 0 | AV19: =+AS19+$AW$18*(AT19-AS19) ->  | BC19: =+AZ19+$BD$18*(BA19-AZ19) ->  | BO19: =+BM19+(BN19-BM19)*($BM$3-$BM$13)/($BN$13-$BM$13) -> 
C20: 0.91536 | D20: 0.9502941 | E20: 0.91536 | H20: 0.30799 | I20: 0.92177 | P20: -26.37 | Q20: -20 | R20: =+P20+(Q20-P20)*(P3-P24)/(Q24-P24) -> -25.85063765 | Y20: =+W20+(X20-W20)*(DATA!#REF!-W23)/(X23-W23) ->  | AD20: =+AB20+(AC20-AB20)*(DATA!D9-AB22)/(AC22-AB22) ->  | AJ20: =+AH20+(AI20-AH20)*(DATA!O9-AH21)/(AI21-AH21) ->  | AP20: =+AN20+(AO20-AN20)*(DATA!$D$5-CALCULOS!AN12) -> 0 | AV20: =+AS20+$AW$18*(AT20-AS20) ->  | BC20: =+AZ20+$BD$18*(BA20-AZ20) ->  | BO20: =+BM20+(BN20-BM20)*($BM$3-$BM$13)/($BN$13-$BM$13) -> 
O21: 100 | P21: 0.19254 | Q21: 0.19841 | R21: =+P21+(Q21-P21)*(P3-P24)/(Q24-P24) -> 0.1930185961 | Y21: =+W21+(X21-W21)*(W3-W23)/(X23-W23) ->  | AD21: =+AB21+(AC21-AB21)*(AB3-AB22)/(AC22-AB22) ->  | AJ21: =+AH21+(AI21-AH21)*(AH3-AH21)/(AI21-AH21) ->  | AV21: =+AS21+$AW$18*(AT21-AS21) ->  | BC21: =+AZ21+$BD$18*(BA21-AZ21) ->  | BO21: =+BM21+(BN21-BM21)*($BM$3-$BM$13)/($BN$13-$BM$13) -> 
E22: =+E16+(E20-E16)*(B13-C4)/(C13-C17) -> 0.9179 | P22: 215.19 | Q22: 219.66 | R22: =+P22+(Q22-P22)*(P3-P24)/(Q24-P24) -> 215.5544505 | Y22: =+W22+(X22-W22)*(W3-W23)/(X23-W23) ->  | AD22: =+AB22+(AC22-AB22)*(AB3-AB22)/(AC22-AB22) ->  | AJ22: =+AH22+(AI22-AH22)*(AH3-AH21)/(AI21-AH21) ->  | CC22: =+CC14+(CD14-CC14)*($CC$3-$CB$14)/(CB$18-$CB$14) ->  | CD22: =+CD14+(CD18-CD14)*($CC$3-$CB$14)/(CB$18-$CB$14) ->  | CH22: =+CH14+(CH18-CH14)*($CH$3-$CG$14)/(CG$18-$CG$14) ->  | CI22: =+CI14+(CI18-CI14)*($CH$3-$CG$14)/(CG$18-$CG$14) -> 
P23: 234.44 | Q23: 239.5 | R23: =+P23+(Q23-P23)*(P3-P24)/(Q24-P24) -> 234.8525547 | Y23: =+W23+(X23-W23)*(W3-W23)/(X23-W23) ->  | AD23: =+AB23+(AC23-AB23)*(AB3-AB22)/(AC22-AB22) ->  | AJ23: =+AH23+(AI23-AH23)*(AH3-AH21)/(AI21-AH21) ->  | CC23: =+CC15+(CD15-CC15)*($CC$3-$CB$14)/(CB$18-$CB$14) ->  | CD23: =+CD15+(CD19-CD15)*($CC$3-$CB$14)/(CB$18-$CB$14) ->  | CH23: =+CH15+(CH19-CH15)*($CH$3-$CG$14)/(CG$18-$CG$14) ->  | CI23: =+CI15+(CI19-CI15)*($CC$3-$CB$14)/(CG$18-$CB$14) -> 
P24: 0.951848874 | Q24: 0.9721 | R24: =+P24+(Q24-P24)*(P3-P24)/(Q24-P24) -> 0.9535 | Y24: =+W24+(X24-W24)*(W3-W23)/(X23-W23) ->  | AD24: =+AB24+(AC24-AB24)*(AB3-AB22)/(AC22-AB22) ->  | AJ24: =+AH24+(AI24-AH24)*(AH3-AH21)/(AI21-AH21) ->  | CC24: =+CC16+(CD16-CC16)*($CC$3-$CB$14)/(CB$18-$CB$14) ->  | CD24: =+CD16+(CD20-CD16)*($CC$3-$CB$14)/(CB$18-$CB$14) ->  | CH24: =+CH16+(CH20-CH16)*($CH$3-$CG$14)/(CG$18-$CG$14) ->  | CI24: =+CI16+(CI20-CI16)*($CC$3-$CB$14)/(CG$18-$CB$14) -> 
O25: 101.73 | P25: 0.18946 | Q25: 0.1957153748 | R25: =+P25+(Q25-P25)*(P3-P28)/(Q28-P28) -> 0.1901288747 | Y25: =+W25+(X25-W25)*(W3-W27)/(X27-W27) ->  | AD25: =+AB25+(AC25-AB25)*(AB3-AB26)/(AC26-AB26) ->  | AJ25: =+AH25+(AI25-AH25)*(AH3-AH25)/(AI25-AH25) ->  | CC25: =+CC17+(CD17-CC17)*($CC$3-$CB$14)/(CB$18-$CB$14) ->  | CD25: =+CD17+(CD21-CD17)*($CC$3-$CB$14)/(CB$18-$CB$14) ->  | CH25: =+CH17+(CH21-CH17)*($CH$3-$CG$14)/(CG$18-$CG$14) ->  | CI25: =+CI17+(CI21-CI17)*($CC$3-$CB$14)/(CG$18-$CB$14) -> 
B26: SOBRESATURADO | P26: 215.4 | Q26: 219.6167764 | R26: =+P26+(Q26-P26)*(P3-P28)/(Q28-P28) -> 215.8508915 | Y26: =+W26+(X26-W26)*(W3-W27)/(X27-W27) ->  | AD26: =+AB26+(AC26-AB26)*(AB3-AB26)/(AC26-AB26) ->  | AJ26: =+AH26+(AI26-AH26)*(AH3-AH25)/(AI25-AH25) -> 
B27: fila | C27: =MATCH(CALCULOS!C4,'TABLAS DE VAPOR DE H134A'!A3:A842,1) -> 265 | D27: =+C27+2 -> 267 | E27: =+ADDRESS(D27,D28,1,1,) -> $L$267 | F27: =+D27 -> 267 | G27: =+ADDRESS(F27,F28,1,1,) -> $A$267 | H27: =1 -> 1 | I27: =+ADDRESS(H27,H28,1,1,) -> $L$1 | J27: =+D27 -> 267 | K27: =+ADDRESS(J27,J28,1,1,) -> $L$267 | L27: =+ADDRESS(D27,D28+1,1,1,) -> $M$267 | M27: =+ADDRESS(J27,J28+1,1,1,) -> $M$267 | P27: 234.68 | Q27: 239.4425442 | R27: =+P27+(Q27-P27)*(P3-P28)/(Q28-P28) -> 235.1892493 | Y27: =+W27+(X27-W27)*(W3-W27)/(X27-W27) ->  | AD27: =+AB27+(AC27-AB27)*(AB3-AB26)/(AC26-AB26) ->  | AJ27: =+AH27+(AI27-AH27)*(AH3-AH25)/(AI25-AH25) -> 
B28: columna | C28: =MATCH(CALCULOS!C5,'TABLAS DE VAPOR DE H134A'!F1:AM1,1) -> 7 | D28: =+C28+5 -> 12 | E28: =+ADDRESS(D27+7,D28+1,1,1,) -> $M$274 | F28: 1 | G28: =+ADDRESS(F27+7,F28,1,1,) -> $A$274 | H28: =+C28+5 -> 12 | I28: =+ADDRESS(H27,H28+1,1,1,) -> $M$1 | J28: =+D28 -> 12 | K28: =+ADDRESS(J27+7,J28,1,1,) -> $L$274 | L28: =+ADDRESS(J27+7,D28+1,1,1,) -> $M$274 | M28: =+ADDRESS(J27+4,J28+1,1,1,) -> $M$271 | P28: 0.95144 | Q28: 0.9707052995 | R28: =+P28+(Q28-P28)*(P3-P28)/(Q28-P28) -> 0.9535 | Y28: =+W28+(X28-W28)*(W3-W27)/(X27-W27) ->  | AD28: =+AB28+(AC28-AB28)*(AB3-AB26)/(AC26-AB26) ->  | AJ28: =+AH28+(AI28-AH28)*(AH3-AH25)/(AI25-AH25) ->  | BH28: =+'TABLAS DE VAPOR DE H134A'!U269+('TABLAS DE VAPOR DE H134A'!V269-'TABLAS DE VAPOR DE H134A'!U269)*($BG$3-$BG$13)/(BH$13-$BG$13) -> 
B31: SATURADO PRESION
B32: fila | C32: =MATCH(CALCULOS!G4,'TABLAS DE VAPOR DE H134A'!A3:A362,1) -> 265 | D32: =+C32+2 -> 267 | E32: =+ADDRESS(D32,3,1,1,) -> $C$267 | F32: =+D32 -> 267 | G32: =+ADDRESS(F32,1,1,1,) -> $A$267 | H32: =+D32 -> 267 | I32: =+ADDRESS(H32,5,1,1,) -> $E$267 | BH32: =+'TABLAS DE VAPOR DE H134A'!U273+('TABLAS DE VAPOR DE H134A'!V273-'TABLAS DE VAPOR DE H134A'!U273)*($BG$3-$BG$13)/(BH$13-$BG$13) -> 
D33: =+D32+4 -> 271 | E33: =+ADDRESS(D32+7,4,1,1,) -> $D$274 | F33: =+D33 -> 271 | G33: =+ADDRESS(F32+7,1,1,1,) -> $A$274 | I33: =+ADDRESS(H32+7,5,1,1,) -> $E$274
B35: SATURADO TEMPERATURA
B36: fila | C36: =MATCH(CALCULOS!K4,'TABLAS DE VAPOR DE H134A'!E3:E842,1) -> 193 | D36: =+C36+2 -> 195 | E36: =+ADDRESS(D36,3,1,1,) -> $C$195 | F36: =+D36 -> 195 | G36: =+ADDRESS(F36,1,1,1,) -> $A$195 | H36: =+D36 -> 195 | I36: =+ADDRESS(H36,5,1,1,) -> $E$195 | BH36: =+'TABLAS DE VAPOR DE H134A'!U277+('TABLAS DE VAPOR DE H134A'!V277-'TABLAS DE VAPOR DE H134A'!U277)*($BG$3-$BG$13)/(BH$13-$BG$13) -> 
D37: =+D36+4 -> 199 | E37: =+ADDRESS(D36+7,4,1,1,) -> $D$202 | F37: =+D37 -> 199 | G37: =+ADDRESS(F36+7,1,1,1,) -> $A$202 | I37: =+ADDRESS(H36+7,5,1,1,) -> $E$202
BH40: =+'TABLAS DE VAPOR DE H134A'!U281+('TABLAS DE VAPOR DE H134A'!V281-'TABLAS DE VAPOR DE H134A'!U281)*($BG$3-$BG$13)/(BH$13-$BG$13) -> 
B44: celdas | C44: =+ADDRESS(D27,D28,1,1,"TABLAS DE VAPOR DE H134A") -> 'TABLAS DE VAPOR DE H134A'!$L$267 | BH44: =+'TABLAS DE VAPOR DE H134A'!U285+('TABLAS DE VAPOR DE H134A'!V285-'TABLAS DE VAPOR DE H134A'!U285)*($BG$3-$BG$13)/(BH$13-$BG$13) -> 
F45: =CONCATENATE("F¨",D27,"C",D28) -> F¨267C12
C46: =DGET('TABLAS DE VAPOR DE H134A'!A1:A390,'TABLAS DE VAPOR DE H134A'!A2,"C4>'TABLAS DE VAPOR DE H134A'!A1:A138") -> 
C47: =DGET('TABLAS DE VAPOR DE H134A'!A3:A390,CALCULOS!C4,CALCULOS!C4>'TABLAS DE VAPOR DE H134A'!A3:A390) -> 
BH48: =+'TABLAS DE VAPOR DE H134A'!U289+('TABLAS DE VAPOR DE H134A'!V289-'TABLAS DE VAPOR DE H134A'!U289)*($BG$3-$BG$13)/(BH$13-$BG$13) -> 
BH52: =+'TABLAS DE VAPOR DE H134A'!U293+('TABLAS DE VAPOR DE H134A'!V293-'TABLAS DE VAPOR DE H134A'!U293)*($BG$3-$BG$13)/(BH$13-$BG$13) -> 
B53: INTERPOLAR
D56: =+C56+(E56-C56)*($M$1-$N$1)/($M$1-$V$1) ->  | BH56: =+'TABLAS DE VAPOR DE H134A'!U297+('TABLAS DE VAPOR DE H134A'!V297-'TABLAS DE VAPOR DE H134A'!U297)*($BG$3-$BG$13)/(BH$13-$BG$13) -> 
B60: fila | C60: =CELL("DIRECCION",'TABLAS DE VAPOR DE H134A'!N3) -> '[H134A_v.2.1.xlsm]TABLAS DE VAPOR DE H134A'!$N$3 | BH60: =+'TABLAS DE VAPOR DE H134A'!U301+('TABLAS DE VAPOR DE H134A'!V301-'TABLAS DE VAPOR DE H134A'!U301)*($BG$3-$BG$13)/(BH$13-$BG$13) -> 
B61: columna
BH64: =+'TABLAS DE VAPOR DE H134A'!U305+('TABLAS DE VAPOR DE H134A'!V305-'TABLAS DE VAPOR DE H134A'!U305)*($BG$3-$BG$13)/(BH$13-$BG$13) -> 
B65: VOLUMEN DE SATURACION
A66: LIQU | B66: fila | C66: =MATCH(CALCULOS!T7,'TABLAS DE VAPOR DE H134A'!C3:C818,1) -> 4 | D66: =+C66+2 -> 6 | E66: =+ADDRESS(D66,D67,1,1,) ->  | G66: =+ADDRESS(F66,F67,1,1,) ->  | H66: =+D66 -> 6 | I66: =+ADDRESS(H66,H67,1,1,) -> 
B67: columna | C67: =MATCH(CALCULOS!C44,'TABLAS DE VAPOR DE H134A'!F103:AM103,1) ->  | D67: =+C67+5 ->  | E67: =+ADDRESS(D66+7,D67+1,1,1,) ->  | F67: =+D67 ->  | G67: =+ADDRESS(F66,F67+1,1,1,) ->  | H67: =+D67 ->  | I67: =+ADDRESS(H66+7,H67,1,1,) -> 
A68: VAP | B68: fila | C68: =MATCH(CALCULOS!T9,'TABLAS DE VAPOR DE H134A'!C369:D820,1) ->  | D68: =+C68+2 ->  | E68: =+ADDRESS(D68,D69,1,1,) ->  | G68: =+ADDRESS(F68,F69,1,1,) ->  | H68: =+D68 ->  | I68: =+ADDRESS(H68,H69,1,1,) ->  | BH68: =+'TABLAS DE VAPOR DE H134A'!U309+('TABLAS DE VAPOR DE H134A'!V309-'TABLAS DE VAPOR DE H134A'!U309)*($BG$3-$BG$13)/(BH$13-$BG$13) -> 
B69: columna | C69: =MATCH(CALCULOS!C46,'TABLAS DE VAPOR DE H134A'!F111:AM111,1) ->  | D69: =+C69+5 ->  | E69: =+ADDRESS(D68+7,D69+1,1,1,) ->  | F69: =+D69 ->  | G69: =+ADDRESS(F68,F69+1,1,1,) ->  | I69: =+ADDRESS(H68+7,H69,1,1,) -> 
B73: PRESION ENTROPIA
B74: fila | C74: =MATCH(CALCULOS!P2,'TABLAS DE VAPOR DE H134A'!A3:A842,1) -> 45 | D74: =+C74+5 -> 50 | E74: =+ADDRESS(D74,D75,1,1,) ->  | G74: =+ADDRESS(F74,F75,1,1,) ->  | H74: =+D74 -> 50 | I74: =+ADDRESS(H74,H75,1,1,) ->  | J74: =+D74+3 -> 53 | K74: =+ADDRESS(J74,J75,1,1,) ->  | L74: =+ADDRESS(D74,D75+1,1,1,) ->  | M74: =+ADDRESS(J74,45,1,) -> $AS$53
B75: columna | C75: COINCIDIR(CALCULOS!P3;'TABLAS DE VAPOR DE AGUA'!J74:M74;1) | D75: =+C75+5 ->  | E75: =+ADDRESS(D74+7,D75+1,1,1,) ->  | F75: =+D75 ->  | G75: =+ADDRESS(F74,F75+1,1,1,) ->  | I75: =+ADDRESS(H74+7,H75,1,1,) ->  | K75: =+ADDRESS(J74+7,J75,1,1,) ->  | L75: =+ADDRESS(J74+7,D75+1,1,1,) -> 
B79: PRESION ENTALPIA
B80: fila | C80: =MATCH(CALCULOS!W2,'TABLAS DE VAPOR DE H134A'!A3:A842,1) -> 45 | D80: =+C80+4 -> 49 | E80: =+ADDRESS(D80,D81,1,1,) ->  | G80: =+ADDRESS(F80,F81,1,1,) ->  | H80: =+D80 -> 49 | I80: =+ADDRESS(H80,H81,1,1,) ->  | J80: =+D80+3 -> 52 | K80: =+ADDRESS(J80,J81,1,1,) -> 
B81: columna | C81: COINCIDIR(CALCULOS!W9;'TABLAS DE VAPOR DE AGUA'!J80:M80;1) | D81: =+C81+5 ->  | E81: =+ADDRESS(D80+7,D81+1,1,1,) ->  | F81: =+D81 ->  | G81: =+ADDRESS(F80,F81+1,1,1,) ->  | I81: =+ADDRESS(H80+7,H81,1,1,) ->  | K81: =+ADDRESS(J80+7,J81,1,1,) -> 
B85: PRESION INTERNA
B86: fila | C86: =MATCH(CALCULOS!AB2,'TABLAS DE VAPOR DE H134A'!A3:A842,1) -> 45 | D86: =+C86+3 -> 48 | E86: =+ADDRESS(D86,D87,1,1,) ->  | G86: =+ADDRESS(F86,F87,1,1,) ->  | H86: =+D86 -> 48 | I86: =+ADDRESS(H86,H87,1,1,) ->  | J86: =+D86+3 -> 51 | K86: =+ADDRESS(J86,J87,1,1,) -> 
B87: columna | C87: COINCIDIR(CALCULOS!AB9;'TABLAS DE VAPOR DE AGUA'!J80:M80;1) | D87: =+C87+5 ->  | E87: =+ADDRESS(D86+7,D87+1,1,1,) ->  | F87: =+D87 ->  | G87: =+ADDRESS(F86,F87+1,1,1,) ->  | I87: =+ADDRESS(H86+7,H87,1,1,) ->  | K87: =+ADDRESS(J86+7,J87,1,1,) -> 
